{"text_format":"1","workbook":"xlsx","n_sheets":6,"sheets":["QGTC_1","QGTC_2","QGTC_3","QGTC_4","QGTC_5","QGTC_6"],"not_rendered":{"charts":0,"images":0,"macros":0,"external_links":0,"defined_names":8,"comments":0,"pivot_tables":0},"unopened":[],"bounds":{"document_bytes":16777216,"sheet_cells":100000,"rows_first":2000,"rows_last":500,"rows_between":2000,"halvings":0,"cell_chars":16384,"cell_head_chars":4096},"cells_cut":0,"cells_raw":0,"read":"whole","date_system":"1900"}

{"sheet":"QGTC_1","index":0,"n_rows":320,"n_cols":26,"rows_kept":320,"cut":false,"hidden":false,"merged":[[259,24,259,25],[260,24,260,25],[261,24,261,25],[262,24,262,25],[263,24,263,25],[264,24,264,25],[265,24,265,25],[266,24,266,25],[309,24,309,25],[301,24,301,25],[268,24,268,25],[281,24,281,25],[282,24,282,25],[283,24,283,25],[284,24,284,25],[303,24,303,25],[304,24,304,25],[305,24,305,25],[306,24,306,25],[269,24,269,25],[270,24,270,25],[286,24,286,25],[291,24,291,25],[292,24,292,25],[256,24,256,25],[257,24,257,25],[258,24,258,25],[53,24,53,25],[174,24,174,25],[205,24,205,25],[244,24,244,25],[245,24,245,25],[246,24,246,25],[247,24,247,25],[248,24,248,25],[249,24,249,25],[243,24,243,25],[218,24,218,25],[219,24,219,25],[228,24,228,25],[229,24,229,25],[230,24,230,25],[231,24,231,25],[236,24,236,25],[237,24,237,25],[238,24,238,25],[239,24,239,25],[240,24,240,25],[39,24,39,25],[40,24,40,25],[41,24,41,25],[250,24,250,25],[251,24,251,25],[252,24,252,25],[253,24,253,25],[254,24,254,25],[255,24,255,25],[241,24,241,25],[242,24,242,25],[234,24,234,25],[235,24,235,25],[222,24,222,25],[223,24,223,25],[224,24,224,25],[225,24,225,25],[226,24,226,25],[227,24,227,25],[232,24,232,25],[233,24,233,25],[221,24,221,25],[204,24,204,25],[206,24,206,25],[207,24,207,25],[208,24,208,25],[209,24,209,25],[210,24,210,25],[211,24,211,25],[195,24,195,25],[196,24,196,25],[197,24,197,25],[198,24,198,25],[199,24,199,25],[200,24,200,25],[201,24,201,25],[202,24,202,25],[203,24,203,25],[212,24,212,25],[213,24,213,25],[214,24,214,25],[215,24,215,25],[216,24,216,25],[217,24,217,25],[220,24,220,25],[177,24,177,25],[178,24,178,25],[179,24,179,25],[180,24,180,25],[181,24,181,25],[182,24,182,25],[183,24,183,25],[184,24,184,25],[185,24,185,25],[186,24,186,25],[187,24,187,25],[188,24,188,25],[189,24,189,25],[190,24,190,25],[191,24,191,25],[192,24,192,25],[193,24,193,25],[194,24,194,25],[168,24,168,25],[169,24,169,25],[170,24,170,25],[171,24,171,25],[172,24,172,25],[173,24,173,25],[175,24,175,25],[176,24,176,25],[153,24,153,25],[154,24,154,25],[155,24,155,25],[156,24,156,25],[157,24,157,25],[158,24,158,25],[159,24,159,25],[142,24,142,25],[143,24,143,25],[144,24,144,25],[145,24,145,25],[146,24,146,25],[147,24,147,25],[148,24,148,25],[149,24,149,25],[150,24,150,25],[151,24,151,25],[152,24,152,25],[161,24,161,25],[162,24,162,25],[163,24,163,25],[164,24,164,25],[165,24,165,25],[166,24,166,25],[167,24,167,25],[160,24,160,25],[124,24,124,25],[125,24,125,25],[126,24,126,25],[127,24,127,25],[128,24,128,25],[129,24,129,25],[130,24,130,25],[131,24,131,25],[132,24,132,25],[133,24,133,25],[134,24,134,25],[135,24,135,25],[136,24,136,25],[137,24,137,25],[138,24,138,25],[139,24,139,25],[140,24,140,25],[141,24,141,25],[106,24,106,25],[107,24,107,25],[108,24,108,25],[109,24,109,25],[110,24,110,25],[111,24,111,25],[112,24,112,25],[113,24,113,25],[114,24,114,25],[115,24,115,25],[116,24,116,25],[117,24,117,25],[118,24,118,25],[119,24,119,25],[120,24,120,25],[121,24,121,25],[122,24,122,25],[123,24,123,25],[88,24,88,25],[89,24,89,25],[90,24,90,25],[91,24,91,25],[92,24,92,25],[93,24,93,25],[94,24,94,25],[95,24,95,25],[96,24,96,25],[97,24,97,25],[98,24,98,25],[99,24,99,25],[100,24,100,25],[101,24,101,25],[102,24,102,25],[103,24,103,25],[104,24,104,25],[105,24,105,25],[80,24,80,25],[81,24,81,25],[82,24,82,25],[83,24,83,25],[84,24,84,25],[85,24,85,25],[86,24,86,25],[87,24,87,25],[71,24,71,25],[72,24,72,25],[73,24,73,25],[74,24,74,25],[75,24,75,25],[76,24,76,25],[77,24,77,25],[78,24,78,25],[79,24,79,25],[66,24,66,25],[67,24,67,25],[68,24,68,25],[69,24,69,25],[70,24,70,25],[59,24,59,25],[60,24,60,25],[61,24,61,25],[62,24,62,25],[28,24,28,25],[29,24,29,25],[30,24,30,25],[31,24,31,25],[32,24,32,25],[58,24,58,25],[63,24,63,25],[64,24,64,25],[65,24,65,25],[42,24,42,25],[43,24,43,25],[44,24,44,25],[45,24,45,25],[46,24,46,25],[47,24,47,25],[48,24,48,25],[49,24,49,25],[50,24,50,25],[33,24,33,25],[34,24,34,25],[35,24,35,25],[36,24,36,25],[37,24,37,25],[38,24,38,25],[14,24,14,25],[287,24,287,25],[288,24,288,25],[289,24,289,25],[290,24,290,25],[15,24,15,25],[51,24,51,25],[52,24,52,25],[54,24,54,25],[55,24,55,25],[20,24,20,25],[21,24,21,25],[56,24,56,25],[57,24,57,25],[16,24,16,25],[17,24,17,25],[18,24,18,25],[19,24,19,25],[22,24,22,25],[23,24,23,25],[24,24,24,25],[25,24,25,25],[26,24,26,25],[27,24,27,25],[5,24,5,25],[6,24,6,25],[7,24,7,25],[8,24,8,25],[9,24,9,25],[10,24,10,25],[11,24,11,25],[12,24,12,25],[13,24,13,25],[1,1,3,3],[1,5,1,18],[1,19,4,20],[1,21,4,22],[1,24,2,25],[2,5,2,18],[3,5,3,12],[3,14,3,18],[4,24,4,25],[320,24,320,25],[317,24,317,25],[318,24,318,25],[307,24,307,25],[308,24,308,25],[312,24,312,25],[313,24,313,25],[314,24,314,25],[315,24,315,25],[319,24,319,25],[271,24,271,25],[275,24,275,25],[272,24,272,25],[273,24,273,25],[274,24,274,25],[278,24,278,25],[279,24,279,25],[280,24,280,25],[276,24,276,25],[305,21,307,21],[305,22,307,22],[310,24,310,25],[313,21,314,21],[313,22,314,22],[297,24,297,25],[298,24,298,25],[299,24,299,25],[300,24,300,25]]}
[]
[null,null,null,null,null,"SISTEMA DE GESTÃO TÉCNICA CENTRALIZADA",null,null,null,null,null,null,null,null,null,null,null,null,null,"Equip.Campo",null,"Cabos",null,null,"Obra: \"PROJETO DE ARQUITETURA E ESPECIALIDADES DO TOPO NORTE DO ESTÁDIO MUNICIPAL DE LEIRIA PARA CENTRO DE NEGÓCIOS E CENTRO ASSOCIATIVO MUNICIPAL\""]
[null,null,null,null,null,"LISTA DE PONTOS"]
[null,null,null,null,null,"Tipo Sinal",null,null,null,null,null,null,null,null,"Informação / Comando",null,null,null,null,null,null,null,null,null,"Rev.: 02","Data: 2025/09/24"]
[null,"Quadro","Inst.","Descrição",null,"ED","Edi","SD","Eap","Eaa","SA","Bus","Protocolo",null,"Alarme","Sinal","Reg","Ind.","Acum.",null,null,null,null,null,"Observações"]
[]
[null,null,null,"QGTC_1"]
[]
[null,null,null,"Instalações mecânicas PISO 0"]
[]
[null,"QGTC 1","AVAC 1","QE.AVAC 1",null,null,null,null,null,null,null,null,null,null,null,null,null,null,null,null,null,2,"YSLY-JZ 16G1"]
[null,"\"","\"","Posição interruptor geral",null,1,null,null,null,null,null,null,null,null,"E","A",null,null,"N"]
[null,"\"","\"","Disparo agrupado int. diferenciais",null,1,null,null,null,null,null,null,null,null,"E","A",null,null,"N"]
[null,"\"","\"","Actuação CDI",null,1,null,null,null,null,null,null,null,null,"E","A",null,null,"N"]
[null,"\"","\"","Analisador de rede",null,null,null,null,null,null,null,20,"Modbus-Rtu (RS485)",null,null,null,null,null,null,null,null,1,"Datacel 2x2x0,5"]
[]
[null,"QGTC 1","AVAC 1","REC 1"]
[null,"\"","\"","Arranque / Paragem automático",null,null,null,1,null,null,null,null,null,null,null,null,null,null,null,null,null,1,"YSLY-OZ 2x1"]
[null,"\"","\"","Comutador Man-0-Automático",null,1,null,null,null,null,null,null,null,null,"E","A",null,null,"N"]
[null,"\"","\"","Disparo de proteções",null,1,null,null,null,null,null,null,null,null,"E","A",null,null,"N"]
[null,"\"","\"","Sinais via protocolo de comunicação",null,null,null,null,null,null,null,45,"BACnet/IP",null,null,null,null,null,null,null,null,1,"UTP Cat6"]
[null,null,null,"REC 1"]
[null,null,null," - % Ventilador Insuflação;"]
[null,null,null," - % Ventilador Retorno;"]
[null,null,null," - % Registo Modulante;"]
[null,null,null," - % Eficiência da recuperação;"]
[null,null,null," - % Abertura da válvula frio;"]
[null,null,null," - % Abertura da válvula quente;"]
[null,null,null," - Estado dos Registos On-Off;"]
[null,null,null," - Ciclo de Funcionamento;"]
[null,null,null," - Ordem aos Ventiladores 1 (individual);"]
[null,null,null," - Ordem aos Ventiladores 2 (individual);"]
[null,null,null," - Temperatura Exterior;"]
[null,null,null," - Temperatura de Retorno;"]
[null,null,null," - Temperatura pós-recuperação;"]
[null,null,null," - Temperatura de Insuflação;"]
[null,null,null," - Temperatura de água fria ida;"]
[null,null,null," - Temperatura de água fria retorno;"]
[null,null,null," - Temperatura de água quente ida;"]
[null,null,null," - Temperatura de água quente retorno;"]
[null,null,null," - Pressão diferencial de Insuflação;"]
[null,null,null," - Caudal de Insuflação;"]
[null,null,null," - Pressão diferencial de Retorno;"]
[null,null,null," - Caudal de Retorno;"]
[null,null,null," - Falha de caudal;"]
[null,null,null," - Estado do filtro de Ar Novo;"]
[null,null,null," - Estado do filtro de Insuflação;"]
[null,null,null," - Estado do filtro de Retorno;"]
[null,null,null," - Estado do Fim de curso dos registos On-Off;"]
[null,null,null," - Estado de Avaria do Ventilador Insuflação;"]
[null,null,null," - Estado de Avaria do Ventilador Retorno;"]
[]
[null,"QGTC 1","AVAC 1","REC 2"]
[null,"\"","\"","Arranque / Paragem automático",null,null,null,1,null,null,null,null,null,null,null,null,null,null,null,null,null,1,"YSLY-OZ 2x1"]
[null,"\"","\"","Comutador Man-0-Automático",null,1,null,null,null,null,null,null,null,null,"E","A",null,null,"N"]
[null,"\"","\"","Disparo de proteções",null,1,null,null,null,null,null,null,null,null,"E","A",null,null,"N"]
[null,"\"","\"","Sinais via protocolo de comunicação",null,null,null,null,null,null,null,45,"BACnet/IP",null,null,null,null,null,null,null,null,1,"UTP Cat6"]
[null,null,null,"REC 2"]
[null,null,null," - % Ventilador Insuflação;"]
[null,null,null," - % Ventilador Retorno;"]
[null,null,null," - % Registo Modulante;"]
[null,null,null," - % Eficiência da recuperação;"]
[null,null,null," - % Abertura da válvula frio;"]
[null,null,null," - % Abertura da válvula quente;"]
[null,null,null," - Estado dos Registos On-Off;"]
[null,null,null," - Ciclo de Funcionamento;"]
[null,null,null," - Ordem aos Ventiladores 1 (individual);"]
[null,null,null," - Ordem aos Ventiladores 2 (individual);"]
[null,null,null," - Temperatura Exterior;"]
[null,null,null," - Temperatura de Retorno;"]
[null,null,null," - Temperatura pós-recuperação;"]
[null,null,null," - Temperatura de Insuflação;"]
[null,null,null," - Temperatura de água fria ida;"]
[null,null,null," - Temperatura de água fria retorno;"]
[null,null,null," - Temperatura de água quente ida;"]
[null,null,null," - Temperatura de água quente retorno;"]
[null,null,null," - Pressão diferencial de Insuflação;"]
[null,null,null," - Caudal de Insuflação;"]
[null,null,null," - Pressão diferencial de Retorno;"]
[null,null,null," - Caudal de Retorno;"]
[null,null,null," - Falha de caudal;"]
[null,null,null," - Estado do filtro de Ar Novo;"]
[null,null,null," - Estado do filtro de Insuflação;"]
[null,null,null," - Estado do filtro de Retorno;"]
[null,null,null," - Estado do Fim de curso dos registos On-Off;"]
[null,null,null," - Estado de Avaria do Ventilador Insuflação;"]
[null,null,null," - Estado de Avaria do Ventilador Retorno;"]
[]
[null,"QGTC 1","AVAC 1","REC 4"]
[null,"\"","\"","Arranque / Paragem automático",null,null,null,1,null,null,null,null,null,null,null,null,null,null,null,null,null,1,"YSLY-OZ 2x1"]
[null,"\"","\"","Comutador Man-0-Automático",null,1,null,null,null,null,null,null,null,null,"E","A",null,null,"N"]
[null,"\"","\"","Disparo de proteções",null,1,null,null,null,null,null,null,null,null,"E","A",null,null,"N"]
[null,"\"","\"","Sinais via protocolo de comunicação",null,null,null,null,null,null,null,45,"BACnet/IP",null,null,null,null,null,null,null,null,1,"UTP Cat6"]
[null,null,null,"REC 4"]
[null,null,null," - % Ventilador Insuflação;"]
[null,null,null," - % Ventilador Retorno;"]
[null,null,null," - % Registo Modulante;"]
[null,null,null," - % Eficiência da recuperação;"]
[null,null,null," - % Abertura da válvula frio;"]
[null,null,null," - % Abertura da válvula quente;"]
[null,null,null," - Estado dos Registos On-Off;"]
[null,null,null," - Ciclo de Funcionamento;"]
[null,null,null," - Ordem aos Ventiladores 1 (individual);"]
[null,null,null," - Ordem aos Ventiladores 2 (individual);"]
[null,null,null," - Temperatura Exterior;"]
[null,null,null," - Temperatura de Retorno;"]
[null,null,null," - Temperatura pós-recuperação;"]
[null,null,null," - Temperatura de Insuflação;"]
[null,null,null," - Temperatura de água fria ida;"]
[null,null,null," - Temperatura de água fria retorno;"]
[null,null,null," - Temperatura de água quente ida;"]
[null,null,null," - Temperatura de água quente retorno;"]
[null,null,null," - Pressão diferencial de Insuflação;"]
[null,null,null," - Caudal de Insuflação;"]
[null,null,null," - Pressão diferencial de Retorno;"]
[null,null,null," - Caudal de Retorno;"]
[null,null,null," - Falha de caudal;"]
[null,null,null," - Estado do filtro de Ar Novo;"]
[null,null,null," - Estado do filtro de Insuflação;"]
[null,null,null," - Estado do filtro de Retorno;"]
[null,null,null," - Estado do Fim de curso dos registos On-Off;"]
[null,null,null," - Estado de Avaria do Ventilador Insuflação;"]
[null,null,null," - Estado de Avaria do Ventilador Retorno;"]
[]
[null,"QGTC 1","AVAC 1","REC 5"]
[null,"\"","\"","Arranque / Paragem automático",null,null,null,1,null,null,null,null,null,null,null,null,null,null,null,null,null,1,"YSLY-OZ 2x1"]
[null,"\"","\"","Comutador Man-0-Automático",null,1,null,null,null,null,null,null,null,null,"E","A",null,null,"N"]
[null,"\"","\"","Avaria",null,1,null,null,null,null,null,null,null,null,"E","A",null,null,"N"]
[null,"\"","\"","Sinais via protocolo de comunicação",null,null,null,null,null,null,null,45,"BACnet/IP",null,null,null,null,null,null,null,null,1,"UTP Cat6"]
[null,null,null,"REC 5"]
[null,null,null," - % Ventilador Insuflação;"]
[null,null,null," - % Ventilador Retorno;"]
[null,null,null," - % Registo Modulante;"]
[null,null,null," - % Eficiência da recuperação;"]
[null,null,null," - % Abertura da válvula frio;"]
[null,null,null," - % Abertura da válvula quente;"]
[null,null,null," - Estado dos Registos On-Off;"]
[null,null,null," - Ciclo de Funcionamento;"]
[null,null,null," - Ordem aos Ventiladores 1 (individual);"]
[null,null,null," - Ordem aos Ventiladores 2 (individual);"]
[null,null,null," - Temperatura Exterior;"]
[null,null,null," - Temperatura de Retorno;"]
[null,null,null," - Temperatura pós-recuperação;"]
[null,null,null," - Temperatura de Insuflação;"]
[null,null,null," - Temperatura de água fria ida;"]
[null,null,null," - Temperatura de água fria retorno;"]
[null,null,null," - Temperatura de água quente ida;"]
[null,null,null," - Temperatura de água quente retorno;"]
[null,null,null," - Pressão diferencial de Insuflação;"]
[null,null,null," - Caudal de Insuflação;"]
[null,null,null," - Pressão diferencial de Retorno;"]
[null,null,null," - Caudal de Retorno;"]
[null,null,null," - Falha de caudal;"]
[null,null,null," - Estado do filtro de Ar Novo;"]
[null,null,null," - Estado do filtro de Insuflação;"]
[null,null,null," - Estado do filtro de Retorno;"]
[null,null,null," - Estado do Fim de curso dos registos On-Off;"]
[null,null,null," - Estado de Avaria do Ventilador Insuflação;"]
[null,null,null," - Estado de Avaria do Ventilador Retorno;"]
[]
[null,"QGTC 1","AVAC 1","REC 19"]
[null,"\"","\"","Arranque / Paragem automático",null,null,null,1,null,null,null,null,null,null,null,null,null,null,null,null,null,1,"YSLY-OZ 2x1"]
[null,"\"","\"","Comutador Man-0-Automático",null,1,null,null,null,null,null,null,null,null,"E","A",null,null,"N"]
[null,"\"","\"","Avaria",null,1,null,null,null,null,null,null,null,null,"E","A",null,null,"N"]
[null,"\"","\"","Sinais via protocolo de comunicação",null,null,null,null,null,null,null,45,"BACnet/IP",null,null,null,null,null,null,null,null,1,"UTP Cat6"]
[null,null,null,"REC 19"]
[null,null,null," - % Ventilador Insuflação;"]
[null,null,null," - % Ventilador Retorno;"]
[null,null,null," - % Registo Modulante;"]
[null,null,null," - % Eficiência da recuperação;"]
[null,null,null," - % Abertura da válvula frio;"]
[null,null,null," - % Abertura da válvula quente;"]
[null,null,null," - Estado dos Registos On-Off;"]
[null,null,null," - Ciclo de Funcionamento;"]
[null,null,null," - Ordem aos Ventiladores 1 (individual);"]
[null,null,null," - Ordem aos Ventiladores 2 (individual);"]
[null,null,null," - Temperatura Exterior;"]
[null,null,null," - Temperatura de Retorno;"]
[null,null,null," - Temperatura pós-recuperação;"]
[null,null,null," - Temperatura de Insuflação;"]
[null,null,null," - Temperatura de água fria ida;"]
[null,null,null," - Temperatura de água fria retorno;"]
[null,null,null," - Temperatura de água quente ida;"]
[null,null,null," - Temperatura de água quente retorno;"]
[null,null,null," - Pressão diferencial de Insuflação;"]
[null,null,null," - Caudal de Insuflação;"]
[null,null,null," - Pressão diferencial de Retorno;"]
[null,null,null," - Caudal de Retorno;"]
[null,null,null," - Falha de caudal;"]
[null,null,null," - Estado do filtro de Ar Novo;"]
[null,null,null," - Estado do filtro de Insuflação;"]
[null,null,null," - Estado do filtro de Retorno;"]
[null,null,null," - Estado do Fim de curso dos registos On-Off;"]
[null,null,null," - Estado de Avaria do Ventilador Insuflação;"]
[null,null,null," - Estado de Avaria do Ventilador Retorno;"]
[]
[null,"QGTC 1","AVAC 1","UTA 1 (Auditório)"]
[null,"\"","\"","Arranque / Paragem automático",null,null,null,1,null,null,null,null,null,null,null,null,null,null,null,null,null,1,"YSLY-OZ 2x1"]
[null,"\"","\"","Comutador Man-0-Automático",null,1,null,null,null,null,null,null,null,null,"E","A",null,null,"N"]
[null,"\"","\"","Avaria",null,1,null,null,null,null,null,null,null,null,"E","A",null,null,"N"]
[null,"\"","\"","Sinais via protocolo de comunicação",null,null,null,null,null,null,null,45,"BACnet/IP",null,null,null,null,null,null,null,null,1,"UTP Cat6"]
[null,null,null,"UTA 1"]
[null,null,null," - % Ventilador Insuflação;"]
[null,null,null," - % Ventilador Retorno;"]
[null,null,null," - % Registo Modulante;"]
[null,null,null," - % Eficiência da recuperação;"]
[null,null,null," - % Abertura da válvula frio;"]
[null,null,null," - % Abertura da válvula quente;"]
[null,null,null," - Estado dos Registos On-Off;"]
[null,null,null," - Ciclo de Funcionamento;"]
[null,null,null," - Ordem aos Ventiladores 1 (individual);"]
[null,null,null," - Ordem aos Ventiladores 2 (individual);"]
[null,null,null," - Temperatura Exterior;"]
[null,null,null," - Temperatura de Retorno;"]
[null,null,null," - Temperatura pós-recuperação;"]
[null,null,null," - Temperatura de Insuflação;"]
[null,null,null," - Temperatura de água fria ida;"]
[null,null,null," - Temperatura de água fria retorno;"]
[null,null,null," - Temperatura de água quente ida;"]
[null,null,null," - Temperatura de água quente retorno;"]
[null,null,null," - Pressão diferencial de Insuflação;"]
[null,null,null," - Caudal de Insuflação;"]
[null,null,null," - Pressão diferencial de Retorno;"]
[null,null,null," - Caudal de Retorno;"]
[null,null,null," - Falha de caudal;"]
[null,null,null," - Estado do filtro de Ar Novo;"]
[null,null,null," - Estado do filtro de Insuflação;"]
[null,null,null," - Estado do filtro de Retorno;"]
[null,null,null," - Estado do Fim de curso dos registos On-Off;"]
[null,null,null," - Estado de Avaria do Ventilador Insuflação;"]
[null,null,null," - Estado de Avaria do Ventilador Retorno;"]
[]
[null,"QGTC 1","AVAC 1","UTA 2 (Auditório)"]
[null,"\"","\"","Arranque / Paragem automático",null,null,null,1,null,null,null,null,null,null,null,null,null,null,null,null,null,1,"YSLY-OZ 2x1"]
[null,"\"","\"","Comutador Man-0-Automático",null,1,null,null,null,null,null,null,null,null,"E","A",null,null,"N"]
[null,"\"","\"","Avaria",null,1,null,null,null,null,null,null,null,null,"E","A",null,null,"N"]
[null,"\"","\"","Sinais via protocolo de comunicação",null,null,null,null,null,null,null,45,"BACnet/IP",null,null,null,null,null,null,null,null,1,"UTP Cat6"]
[null,null,null,"UTA 2"]
[null,null,null," - % Ventilador Insuflação;"]
[null,null,null," - % Ventilador Retorno;"]
[null,null,null," - % Registo Modulante;"]
[null,null,null," - % Eficiência da recuperação;"]
[null,null,null," - % Abertura da válvula frio;"]
[null,null,null," - % Abertura da válvula quente;"]
[null,null,null," - Estado dos Registos On-Off;"]
[null,null,null," - Ciclo de Funcionamento;"]
[null,null,null," - Ordem aos Ventiladores 1 (individual);"]
[null,null,null," - Ordem aos Ventiladores 2 (individual);"]
[null,null,null," - Temperatura Exterior;"]
[null,null,null," - Temperatura de Retorno;"]
[null,null,null," - Temperatura pós-recuperação;"]
[null,null,null," - Temperatura de Insuflação;"]
[null,null,null," - Temperatura de água fria ida;"]
[null,null,null," - Temperatura de água fria retorno;"]
[null,null,null," - Temperatura de água quente ida;"]
[null,null,null," - Temperatura de água quente retorno;"]
[null,null,null," - Pressão diferencial de Insuflação;"]
[null,null,null," - Caudal de Insuflação;"]
[null,null,null," - Pressão diferencial de Retorno;"]
[null,null,null," - Caudal de Retorno;"]
[null,null,null," - Falha de caudal;"]
[null,null,null," - Estado do filtro de Ar Novo;"]
[null,null,null," - Estado do filtro de Insuflação;"]
[null,null,null," - Estado do filtro de Retorno;"]
[null,null,null," - Estado do Fim de curso dos registos On-Off;"]
[null,null,null," - Estado de Avaria do Ventilador Insuflação;"]
[null,null,null," - Estado de Avaria do Ventilador Retorno;"]
[]
[null,"QGTC 1","AVAC 1","VC'S (0.1 a 0.31)"]
[null,null,null,"Sinais via protocolo de comunicação",null,null,null,null,null,null,null,{"$f":"15*30","v":450},"Modbus-Rtu",null,null,null,null,null,null,null,null,1,"Datacel 2x2x0,5"]
[null,null,null,"VC'S"]
[null,null,null,"Comando 0..10Vdc (motor EC)",null,null,null,null,null,null,null,null,null,null,null,"L/D",null,null,"H"]
[null,null,null,"Válvulas três vias regulação - água fria",null,null,null,null,null,null,null,null,null,null,null,null,"%","%",null,1]
[null,null,null,"Válvulas três vias regulação - água quente",null,null,null,null,null,null,null,null,null,null,null,null,"%","%",null,1]
[null,null,null,"Temperatura ar ambiente",null,null,null,null,null,null,null,null,null,null,null,null,"ºC","ºC",null,1]
[null,null,null," - Falha de caudal;"]
[null,null,null,"Unidade operação local"]
[]
[null,"QGTC 1","AVAC 1","BC. AQS 1"]
[null,"\"","\"","Arranque / Paragem automático",null,null,null,1,null,null,null,null,null,null,null,null,null,null,null,null,null,1,"YSLY-OZ 2x1"]
[null,"\"","\"","Comutador Man-0-Automático",null,1,null,null,null,null,null,null,null,null,"E","A",null,null,"N"]
[null,"\"","\"","Avaria",null,1,null,null,null,null,null,null,null,null,"E","A",null,null,"N"]
[null,"\"","\"","Temperatura depósito - nível alto",null,null,null,null,1,null,null,null,null,null,null,null,null,null,null,null,"EGT348F102",null,"Olflex 135CH 2x1"]
[null,"\"","\"","Temperatura depósito - nível baixo",null,null,null,null,1,null,null,null,null,null,null,null,null,null,null,null,"EGT348F102",null,"Olflex 135CH 2x1"]
[null,"\"","\"","Resistência eléctrica - comando",null,null,null,1,null,null,null,null,null,null,null,null,null,null,null,null,null,null,"Olflex 130H 2x1"]
[]
[null,"QGTC 1","AVAC 1","BC. AQS 2"]
[null,"\"","\"","Arranque / Paragem automático",null,null,null,1,null,null,null,null,null,null,null,null,null,null,null,null,null,1,"YSLY-OZ 2x1"]
[null,"\"","\"","Comutador Man-0-Automático",null,1,null,null,null,null,null,null,null,null,"E","A",null,null,"N"]
[null,"\"","\"","Avaria",null,1,null,null,null,null,null,null,null,null,"E","A",null,null,"N"]
[null,"\"","\"","Temperatura depósito - nível alto",null,null,null,null,1,null,null,null,null,null,null,null,null,null,null,null,"EGT348F102",1,"LIHCH 2x1"]
[null,"\"","\"","Temperatura depósito - nível baixo",null,null,null,null,1,null,null,null,null,null,null,null,null,null,null,null,"EGT348F102",1,"LIHCH 2x1"]
[null,"\"","\"","Resistência eléctrica - comando",null,null,null,1,null,null,null,null,null,null,null,null,null,null,null,null,null,1,"YSLY-OZ 2x1"]
[]
[null,"QGTC 1","AVAC 1","Central Registos Corta-Fogo"]
[null,null,null,"Sinais via protocolo de comunicação",null,null,null,null,null,null,null,50,"Interface de comunicação (BACNET IP)",null,null,null,null,null,null,null,null,1,"UTP cat6"]
[]
[null,null,null,"Contagem de energia térmica"]
[null,"QGTC 1","AVAC 1","Contagem de energia térmica - AQ (Ala esquerda)",null,null,null,null,null,null,null,10,"M-Bus",null,null,null,null,null,null,1,"CET-AQ-DN100F",1,"Datacel 2x2x0,5",1]
[null,"\"","\"","Contagem de energia térmica - AF (Ala esquerda)",null,null,null,null,null,null,null,10,"M-Bus",null,null,null,null,null,null,1,"CET-AF-DN100F",1,"Datacel 2x2x0,5",1]
[null,"\"","\"","Contagem de energia térmica - AF (Ala direita)",null,null,null,null,null,null,null,10,"M-Bus",null,null,null,null,null,null,1,"CET-AF-DN100F",1,"Datacel 2x2x0,5",1]
[null,"\"","\"","Contagem de energia térmica - AQ (Ala direita)",null,null,null,null,null,null,null,10,"M-Bus",null,null,null,null,null,null,1,"CET-AQ-DN100F",1,"Datacel 2x2x0,5",1]
[]
[null,null,null,"Instalações elétricas "]
[null,"QGTC 1","QE","(C0) QE-SC0 Piso 0"]
[null,"\"","\"","Posição interruptor geral",null,1,null,null,null,null,null,null,null,null,"E","A",null,null,"N",null,null,1,"YSLY-JZ 25G1"]
[null,"\"","\"","Disparo alimentação Quadros Parciais",null,15,null,null,null,null,null,null,null,null,"E","A",null,null,"N"]
[null,"\"","\"","Disparo disjuntor alimentação - (C0) QE-SC0",null,1,null,null,null,null,null,null,null,null,"F","A",null,null,"N"]
[null,"\"","\"","Analisador de rede (C0) QE-SC0",null,null,null,null,null,null,null,20,"Modbus-Rtu",null,null,null,null,null,null,null,null,1,"Datacel 2x2x0,5"]
[null,"\"","\"","Integração iluminação DALI",null,null,null,null,null,null,null,{"$f":"9*128","v":1152},"DALI",null,null,null,null,null,null,null,null,18,"DALI 1x2x2"]
[null,"\"","\"","Equipamentos KNX",null,null,null,null,null,null,null,{"$f":"64*9","v":576},"KNX",null,null,null,null,null,null,null,null,9,"EIB 2x2x0,5"]
[]
[null,"QGTC 1","QE","Q.GBT"]
[null,"\"","\"","Posição interruptor geral",null,1,null,null,null,null,null,null,null,null,"E","A",null,null,"N",null,null,1,"YSLY-JZ 12G1"]
[null,"\"","\"","Disparo disjuntor alimentação - Q.GBT",null,1,null,null,null,null,null,null,null,null,"F","A",null,null,"N"]
[null,"\"","\"","Analisador de rede Q.GBT",null,null,null,null,null,null,null,20,"Modbus-Rtu",null,null,null,null,null,null,null,null,1,"Datacel 2x2x0,5"]
[]
[null,null,null,"Pontos Controlo",null,{"$f":"SUM(F5:F317)","v":40},0,11,4,0,0,2643]
[null,null,null,"Reserva (+10%)",null,{"$f":"CEILING(F318*0.1,1)","v":4},0,2,1,0,0,265]
[null,null,null,"TOTAL PONTOS CONTROLO",null,{"$f":"F318+F319","v":44},0,13,5,0,0,2908]

{"sheet":"QGTC_2","index":1,"n_rows":166,"n_cols":26,"rows_kept":166,"cut":false,"hidden":false,"merged":[[138,24,138,25],[5,24,5,25],[6,24,6,25],[1,1,3,3],[1,5,1,18],[1,19,4,20],[1,21,4,22],[1,24,2,25],[2,5,2,18],[3,5,3,12],[3,14,3,18],[4,24,4,25],[8,24,8,25],[9,24,9,25],[10,24,10,25],[11,24,11,25],[12,24,12,25],[134,24,134,25],[135,24,135,25],[136,24,136,25],[137,24,137,25],[19,24,19,25],[20,24,20,25],[21,24,21,25],[22,24,22,25],[23,24,23,25],[24,24,24,25],[13,24,13,25],[14,24,14,25],[15,24,15,25],[16,24,16,25],[17,24,17,25],[18,24,18,25],[31,24,31,25],[32,24,32,25],[33,24,33,25],[34,24,34,25],[35,24,35,25],[36,24,36,25],[25,24,25,25],[26,24,26,25],[27,24,27,25],[28,24,28,25],[29,24,29,25],[30,24,30,25],[43,24,43,25],[44,24,44,25],[45,24,45,25],[46,24,46,25],[47,24,47,25],[48,24,48,25],[37,24,37,25],[38,24,38,25],[39,24,39,25],[40,24,40,25],[41,24,41,25],[42,24,42,25],[55,24,55,25],[56,24,56,25],[57,24,57,25],[58,24,58,25],[59,24,59,25],[60,24,60,25],[49,24,49,25],[50,24,50,25],[51,24,51,25],[52,24,52,25],[53,24,53,25],[54,24,54,25],[67,24,67,25],[68,24,68,25],[69,24,69,25],[70,24,70,25],[71,24,71,25],[72,24,72,25],[61,24,61,25],[62,24,62,25],[63,24,63,25],[64,24,64,25],[65,24,65,25],[66,24,66,25],[79,24,79,25],[80,24,80,25],[81,24,81,25],[82,24,82,25],[83,24,83,25],[84,24,84,25],[73,24,73,25],[74,24,74,25],[75,24,75,25],[76,24,76,25],[77,24,77,25],[78,24,78,25],[91,24,91,25],[92,24,92,25],[93,24,93,25],[94,24,94,25],[95,24,95,25],[96,24,96,25],[85,24,85,25],[86,24,86,25],[87,24,87,25],[88,24,88,25],[89,24,89,25],[90,24,90,25],[103,24,103,25],[104,24,104,25],[105,24,105,25],[106,24,106,25],[107,24,107,25],[108,24,108,25],[97,24,97,25],[98,24,98,25],[99,24,99,25],[100,24,100,25],[101,24,101,25],[102,24,102,25],[115,24,115,25],[116,24,116,25],[117,24,117,25],[118,24,118,25],[119,24,119,25],[120,24,120,25],[109,24,109,25],[110,24,110,25],[111,24,111,25],[112,24,112,25],[113,24,113,25],[114,24,114,25],[128,24,128,25],[129,24,129,25],[130,24,130,25],[131,24,131,25],[132,24,132,25],[121,24,121,25],[122,24,122,25],[124,24,124,25],[125,24,125,25],[126,24,126,25],[127,24,127,25],[147,24,147,25],[148,24,148,25],[149,24,149,25],[150,24,150,25],[151,24,151,25],[153,24,153,25],[144,24,144,25],[145,24,145,25],[146,24,146,25],[165,24,165,25],[166,24,166,25],[163,24,163,25],[164,24,164,25],[158,24,158,25],[159,24,159,25],[160,24,160,25],[154,24,154,25],[155,21,157,21],[155,22,157,22],[155,24,155,25],[156,24,156,25],[157,24,157,25]]}
[]
[null,null,null,null,null,"SISTEMA DE GESTÃO TÉCNICA CENTRALIZADA",null,null,null,null,null,null,null,null,null,null,null,null,null,"Equip.Campo",null,"Cabos",null,null,"Obra: \"PROJETO DE ARQUITETURA E ESPECIALIDADES DO TOPO NORTE DO ESTÁDIO MUNICIPAL DE LEIRIA PARA CENTRO DE NEGÓCIOS E CENTRO ASSOCIATIVO MUNICIPAL\""]
[null,null,null,null,null,"LISTA DE PONTOS"]
[null,null,null,null,null,"Tipo Sinal",null,null,null,null,null,null,null,null,"Informação / Comando",null,null,null,null,null,null,null,null,null,"Rev.: 02","Data: 2025/09/24"]
[null,"Quadro","Inst.","Descrição",null,"ED","Edi","SD","Eap","Eaa","SA","Bus","Protocolo",null,"Alarme","Sinal","Reg","Ind.","Acum.",null,null,null,null,null,"Observações"]
[]
[null,null,null,"QGTC_2"]
[]
[null,null,null,"Instalações mecânicas PISO 1"]
[]
[null,"QGTC 2","AVAC 2","QE.AVAC 2",null,null,null,null,null,null,null,null,null,null,null,null,null,null,null,null,null,1,"YSLY-JZ 25G1"]
[null,"\"","\"","Posição interruptor geral",null,1,null,null,null,null,null,null,null,null,"E","A",null,null,"N"]
[null,"\"","\"","Disparo agrupado int. diferenciais",null,1,null,null,null,null,null,null,null,null,"E","A",null,null,"N"]
[null,"\"","\"","Actuação CDI",null,1,null,null,null,null,null,null,null,null,"E","A",null,null,"N"]
[null,"\"","\"","Analisador de rede",null,null,null,null,null,null,null,20,"Modbus-Rtu (RS485)",null,null,null,null,null,null,null,null,1,"Datacel 2x2x0,5"]
[]
[null,"QGTC 2","AVAC 2","REC 6"]
[null,"\"","\"","Arranque / Paragem automático",null,null,null,1,null,null,null,null,null,null,null,null,null,null,null,null,null,1,"YSLY-OZ 2x1"]
[null,"\"","\"","Comutador Man-0-Automático",null,1,null,null,null,null,null,null,null,null,"E","A",null,null,"N"]
[null,"\"","\"","Disparo de proteções",null,1,null,null,null,null,null,null,null,null,"E","A",null,null,"N"]
[null,"\"","\"","Sinais via protocolo de comunicação",null,null,null,null,null,null,null,45,"BACnet/IP",null,null,null,null,null,null,null,null,1,"UTP Cat6"]
[null,null,null,"REC 6"]
[null,null,null," - % Ventilador Insuflação;"]
[null,null,null," - % Ventilador Retorno;"]
[null,null,null," - % Registo Modulante;"]
[null,null,null," - % Eficiência da recuperação;"]
[null,null,null," - % Abertura da válvula frio;"]
[null,null,null," - % Abertura da válvula quente;"]
[null,null,null," - Estado dos Registos On-Off;"]
[null,null,null," - Ciclo de Funcionamento;"]
[null,null,null," - Ordem aos Ventiladores 1 (individual);"]
[null,null,null," - Ordem aos Ventiladores 2 (individual);"]
[null,null,null," - Temperatura Exterior;"]
[null,null,null," - Temperatura de Retorno;"]
[null,null,null," - Temperatura pós-recuperação;"]
[null,null,null," - Temperatura de Insuflação;"]
[null,null,null," - Temperatura de água fria ida;"]
[null,null,null," - Temperatura de água fria retorno;"]
[null,null,null," - Temperatura de água quente ida;"]
[null,null,null," - Temperatura de água quente retorno;"]
[null,null,null," - Pressão diferencial de Insuflação;"]
[null,null,null," - Caudal de Insuflação;"]
[null,null,null," - Pressão diferencial de Retorno;"]
[null,null,null," - Caudal de Retorno;"]
[null,null,null," - Falha de caudal;"]
[null,null,null," - Estado do filtro de Ar Novo;"]
[null,null,null," - Estado do filtro de Insuflação;"]
[null,null,null," - Estado do filtro de Retorno;"]
[null,null,null," - Estado do Fim de curso dos registos On-Off;"]
[null,null,null," - Estado de Avaria do Ventilador Insuflação;"]
[null,null,null," - Estado de Avaria do Ventilador Retorno;"]
[]
[null,"QGTC 2","AVAC 2","REC 7"]
[null,"\"","\"","Arranque / Paragem automático",null,null,null,1,null,null,null,null,null,null,null,null,null,null,null,null,null,1,"YSLY-OZ 2x1"]
[null,"\"","\"","Comutador Man-0-Automático",null,1,null,null,null,null,null,null,null,null,"E","A",null,null,"N"]
[null,"\"","\"","Disparo de proteções",null,1,null,null,null,null,null,null,null,null,"E","A",null,null,"N"]
[null,"\"","\"","Sinais via protocolo de comunicação",null,null,null,null,null,null,null,45,"BACnet/IP",null,null,null,null,null,null,null,null,1,"UTP Cat6"]
[null,null,null,"REC 7"]
[null,null,null," - % Ventilador Insuflação;"]
[null,null,null," - % Ventilador Retorno;"]
[null,null,null," - % Registo Modulante;"]
[null,null,null," - % Eficiência da recuperação;"]
[null,null,null," - % Abertura da válvula frio;"]
[null,null,null," - % Abertura da válvula quente;"]
[null,null,null," - Estado dos Registos On-Off;"]
[null,null,null," - Ciclo de Funcionamento;"]
[null,null,null," - Ordem aos Ventiladores 1 (individual);"]
[null,null,null," - Ordem aos Ventiladores 2 (individual);"]
[null,null,null," - Temperatura Exterior;"]
[null,null,null," - Temperatura de Retorno;"]
[null,null,null," - Temperatura pós-recuperação;"]
[null,null,null," - Temperatura de Insuflação;"]
[null,null,null," - Temperatura de água fria ida;"]
[null,null,null," - Temperatura de água fria retorno;"]
[null,null,null," - Temperatura de água quente ida;"]
[null,null,null," - Temperatura de água quente retorno;"]
[null,null,null," - Pressão diferencial de Insuflação;"]
[null,null,null," - Caudal de Insuflação;"]
[null,null,null," - Pressão diferencial de Retorno;"]
[null,null,null," - Caudal de Retorno;"]
[null,null,null," - Falha de caudal;"]
[null,null,null," - Estado do filtro de Ar Novo;"]
[null,null,null," - Estado do filtro de Insuflação;"]
[null,null,null," - Estado do filtro de Retorno;"]
[null,null,null," - Estado do Fim de curso dos registos On-Off;"]
[null,null,null," - Estado de Avaria do Ventilador Insuflação;"]
[null,null,null," - Estado de Avaria do Ventilador Retorno;"]
[]
[null,"QGTC 2","AVAC 2","REC 8"]
[null,"\"","\"","Arranque / Paragem automático",null,null,null,1,null,null,null,null,null,null,null,null,null,null,null,null,null,1,"YSLY-OZ 2x1"]
[null,"\"","\"","Comutador Man-0-Automático",null,1,null,null,null,null,null,null,null,null,"E","A",null,null,"N"]
[null,"\"","\"","Disparo de proteções",null,1,null,null,null,null,null,null,null,null,"E","A",null,null,"N"]
[null,"\"","\"","Sinais via protocolo de comunicação",null,null,null,null,null,null,null,45,"BACnet/IP",null,null,null,null,null,null,null,null,1,"UTP Cat6"]
[null,null,null,"REC 8"]
[null,null,null," - % Ventilador Insuflação;"]
[null,null,null," - % Ventilador Retorno;"]
[null,null,null," - % Registo Modulante;"]
[null,null,null," - % Eficiência da recuperação;"]
[null,null,null," - % Abertura da válvula frio;"]
[null,null,null," - % Abertura da válvula quente;"]
[null,null,null," - Estado dos Registos On-Off;"]
[null,null,null," - Ciclo de Funcionamento;"]
[null,null,null," - Ordem aos Ventiladores 1 (individual);"]
[null,null,null," - Ordem aos Ventiladores 2 (individual);"]
[null,null,null," - Temperatura Exterior;"]
[null,null,null," - Temperatura de Retorno;"]
[null,null,null," - Temperatura pós-recuperação;"]
[null,null,null," - Temperatura de Insuflação;"]
[null,null,null," - Temperatura de água fria ida;"]
[null,null,null," - Temperatura de água fria retorno;"]
[null,null,null," - Temperatura de água quente ida;"]
[null,null,null," - Temperatura de água quente retorno;"]
[null,null,null," - Pressão diferencial de Insuflação;"]
[null,null,null," - Caudal de Insuflação;"]
[null,null,null," - Pressão diferencial de Retorno;"]
[null,null,null," - Caudal de Retorno;"]
[null,null,null," - Falha de caudal;"]
[null,null,null," - Estado do filtro de Ar Novo;"]
[null,null,null," - Estado do filtro de Insuflação;"]
[null,null,null," - Estado do filtro de Retorno;"]
[null,null,null," - Estado do Fim de curso dos registos On-Off;"]
[null,null,null," - Estado de Avaria do Ventilador Insuflação;"]
[null,null,null," - Estado de Avaria do Ventilador Retorno;"]
[]
[null,"QGTC 2","AVAC 2","VC'S (1.87 a 1.94) (x8)"]
[null,null,null,"Sinais via protocolo de comunicação",null,null,null,null,null,null,null,{"$f":"15*8","v":120},"Modbus-Rtu",null,null,null,null,null,null,null,null,1,"Datacel 2x2x0,5"]
[null,null,null,"VC'S"]
[null,null,null,"Comando 0..10Vdc (motor EC)",null,null,null,null,null,null,null,null,null,null,null,"L/D",null,null,"H"]
[null,null,null,"Válvulas três vias regulação - água fria",null,null,null,null,null,null,null,null,null,null,null,null,"%","%",null,1]
[null,null,null,"Válvulas três vias regulação - água quente",null,null,null,null,null,null,null,null,null,null,null,null,"%","%",null,1]
[null,null,null,"Temperatura ar ambiente",null,null,null,null,null,null,null,null,null,null,null,null,"ºC","ºC",null,1]
[null,null,null," - Falha de caudal;"]
[null,null,null,"Unidade operação local"]
[]
[null,"QGTC 2","AVAC 2","VEX 1 "]
[null,"\"","\"","Arranque / Paragem automático",null,null,null,1,null,null,null,null,null,null,null,null,null,null,null,null,null,1,"YSLY-OZ 2x1"]
[null,"\"","\"","Comutador Man-0-Automático",null,1,null,null,null,null,null,null,null,null,"E","A",null,null,"N"]
[null,"\"","\"","Estado funcionamento (pressostato)",null,1,null,null,null,null,null,null,null,null,"F","A",null,null,"N",1,"DWG930.80",1,"YSLY-OZ 2x1"]
[null,"\"","\"","Avaria",null,1,null,null,null,null,null,null,null,null,"E","E",null,null,"N"]
[]
[null,"QGTC 2","AVAC 2","Central Registos Corta-Fogo"]
[null,null,null,"Sinais via protocolo de comunicação",null,null,null,null,null,null,null,50,"BACnet/IP",null,null,null,null,null,null,null,null,1,"UTP cat6"]
[]
[null,null,null,"Contagem de energia térmica"]
[null,"QGTC 2","AVAC 2","Contagem de energia térmica - AQ (Ala esquerda)",null,null,null,null,null,null,null,10,"M-Bus",null,null,null,null,null,null,1,"CET-AQ-DN65F",1,"Datacel 2x2x0,5",1]
[null,"\"","\"","Contagem de energia térmica - AF (Ala esquerda)",null,null,null,null,null,null,null,10,"M-Bus",null,null,null,null,null,null,1,"CET-AF-DN65F",1,"Datacel 2x2x0,5",1]
[null,"\"","\"","Contagem de energia térmica - AF (Ala central)",null,null,null,null,null,null,null,10,"M-Bus",null,null,null,null,null,null,1,"CET-AF-DN125F",1,"Datacel 2x2x0,5",1]
[null,"\"","\"","Contagem de energia térmica - AQ (Ala central)",null,null,null,null,null,null,null,10,"M-Bus",null,null,null,null,null,null,1,"CET-AQ-DN125F",1,"Datacel 2x2x0,5",1]
[null,"\"","\"","Contagem de energia térmica - AF (Ala central)",null,null,null,null,null,null,null,10,"M-Bus",null,null,null,null,null,null,1,"CET-AF-DN80F",1,"Datacel 2x2x0,5",1]
[null,"\"","\"","Contagem de energia térmica - AQ (Ala central)",null,null,null,null,null,null,null,10,"M-Bus",null,null,null,null,null,null,1,"CET-AQ-DN80F",1,"Datacel 2x2x0,5",1]
[null,"\"","\"","Contagem de energia térmica - AF (Ala direita)",null,null,null,null,null,null,null,10,"M-Bus",null,null,null,null,null,null,1,"CET-AF-DN80F",1,"Datacel 2x2x0,5",1]
[null,"\"","\"","Contagem de energia térmica - AQ (Ala direita)",null,null,null,null,null,null,null,10,"M-Bus",null,null,null,null,null,null,1,"CET-AQ-DN80F",1,"Datacel 2x2x0,5",1]
[]
[null,null,null,"Instalações elétricas"]
[null,"QGTC 2","QE","(C0) QP-SC1 Piso 1"]
[null,"\"","\"","Posição interruptor geral",null,1,null,null,null,null,null,null,null,null,"E","A",null,null,"N",null,null,1,"YSLY-JZ 25G1"]
[null,"\"","\"","Posição Disjuntores Quadros Parciais",null,15,null,null,null,null,null,null,null,null,"E","A",null,null,"N"]
[null,"\"","\"","Disparo disjuntor alimentação - (C0) QP-SC1",null,1,null,null,null,null,null,null,null,null,"F","A",null,null,"N"]
[null,"\"","\"","Analisador de rede (C0) QP-SC1",null,null,null,null,null,null,null,20,"Modbus-Rtu",null,null,null,null,null,null,null,null,1,"Datacel 2x2x0,5"]
[null,"\"","\"","Integração iluminação DALI",null,null,null,null,null,null,null,{"$f":"9*128","v":1152},"DALI",null,null,null,null,null,null,null,null,18,"DALI 1x2x2"]
[null,"\"","\"","Equipamentos KNX",null,null,null,null,null,null,null,{"$f":"64*9","v":576},"KNX",null,null,null,null,null,null,null,null,9,"EIB 2x2x0,5"]
[]
[]
[null,null,null,"Pontos Controlo",null,{"$f":"SUM(F5:F163)","v":29},0,4,0,0,0,2153]
[null,null,null,"Reserva (+10%)",null,{"$f":"CEILING(F164*0.1,1)","v":3},0,1,0,0,0,216]
[null,null,null,"TOTAL PONTOS CONTROLO",null,{"$f":"F164+F165","v":32},0,5,0,0,0,2369]

{"sheet":"QGTC_3","index":2,"n_rows":97,"n_cols":27,"rows_kept":97,"cut":false,"hidden":false,"merged":[[5,24,5,25],[6,24,6,25],[7,24,7,25],[1,1,3,3],[1,5,1,18],[1,19,4,20],[1,21,4,22],[1,24,2,25],[2,5,2,18],[3,5,3,12],[3,14,3,18],[4,24,4,25],[8,24,8,25],[9,24,9,25],[53,24,53,25],[54,24,54,25],[55,24,55,25],[21,24,21,25],[10,24,10,25],[11,24,11,25],[12,24,12,25],[13,24,13,25],[14,24,14,25],[15,24,15,25],[16,24,16,25],[17,24,17,25],[18,24,18,25],[19,24,19,25],[20,24,20,25],[33,24,33,25],[22,24,22,25],[23,24,23,25],[24,24,24,25],[25,24,25,25],[26,24,26,25],[27,24,27,25],[28,24,28,25],[29,24,29,25],[30,24,30,25],[31,24,31,25],[32,24,32,25],[45,24,45,25],[34,24,34,25],[35,24,35,25],[36,24,36,25],[37,24,37,25],[38,24,38,25],[39,24,39,25],[40,24,40,25],[41,24,41,25],[42,24,42,25],[43,24,43,25],[44,24,44,25],[64,24,64,25],[46,24,46,25],[47,24,47,25],[48,24,48,25],[49,24,49,25],[50,24,50,25],[58,24,58,25],[56,24,56,25],[59,24,59,25],[60,24,60,25],[61,24,61,25],[62,24,62,25],[63,24,63,25],[82,24,82,25],[66,24,66,25],[67,24,67,25],[68,24,68,25],[69,24,69,25],[70,24,70,25],[71,24,71,25],[87,21,89,21],[87,22,89,22],[87,24,87,25],[88,24,88,25],[89,24,89,25],[96,24,96,25],[97,24,97,25],[52,24,52,25],[94,24,94,25],[95,24,95,25],[90,24,90,25],[91,24,91,25],[92,24,92,25],[83,24,83,25],[85,24,85,25],[86,24,86,25],[72,24,72,25],[78,24,78,25],[79,24,79,25],[80,24,80,25],[81,24,81,25]]}
[]
[null,null,null,null,null,"SISTEMA DE GESTÃO TÉCNICA CENTRALIZADA",null,null,null,null,null,null,null,null,null,null,null,null,null,"Equip.Campo",null,"Cabos",null,null,"Obra: \"PROJETO DE ARQUITETURA E ESPECIALIDADES DO TOPO NORTE DO ESTÁDIO MUNICIPAL DE LEIRIA PARA CENTRO DE NEGÓCIOS E CENTRO ASSOCIATIVO MUNICIPAL\""]
[null,null,null,null,null,"LISTA DE PONTOS"]
[null,null,null,null,null,"Tipo Sinal",null,null,null,null,null,null,null,null,"Informação / Comando",null,null,null,null,null,null,null,null,null,"Rev.: 02","Data: 2025/09/24"]
[null,"Quadro","Inst.","Descrição",null,"ED","Edi","SD","Eap","Eaa","SA","Bus","Protocolo",null,"Alarme","Sinal","Reg","Ind.","Acum.",null,null,null,null,null,"Observações"]
[]
[null,null,null,"QGTC_3"]
[]
[null,null,null,"Instalações mecânicas PISO 2"]
[]
[null,"QGTC 3","AVAC 3","QE.AVAC 3",null,null,null,null,null,null,null,null,null,null,null,null,null,null,null,null,null,1,"YSLY-JZ 16G1"]
[null,"\"","\"","Posição interruptor geral",null,1,null,null,null,null,null,null,null,null,"E","A",null,null,"N"]
[null,"\"","\"","Disparo agrupado int. diferenciais",null,1,null,null,null,null,null,null,null,null,"E","A",null,null,"N"]
[null,"\"","\"","Actuação CDI",null,1,null,null,null,null,null,null,null,null,"E","A",null,null,"N"]
[null,"\"","\"","Analisador de rede",null,null,null,null,null,null,null,20,"Modbus-Rtu (RS485)",null,null,null,null,null,null,null,null,1,"Datacel 2x2x0,5"]
[]
[null,"QGTC 3","AVAC 3","REC 9"]
[null,"\"","\"","Arranque / Paragem automático",null,null,null,1,null,null,null,null,null,null,null,null,null,null,null,null,null,1,"YSLY-OZ 2x1"]
[null,"\"","\"","Comutador Man-0-Automático",null,1,null,null,null,null,null,null,null,null,"E","A",null,null,"N"]
[null,"\"","\"","Avaria",null,1,null,null,null,null,null,null,null,null,"E","A",null,null,"N"]
[null,"\"","\"","Sinais via protocolo de comunicação",null,null,null,null,null,null,null,45,"BACnet/IP",null,null,null,null,null,null,null,null,1,"Datacel 2x2x0,5"]
[null,null,null,"REC 9"]
[null,null,null," - % Ventilador Insuflação;"]
[null,null,null," - % Ventilador Retorno;"]
[null,null,null," - % Registo Modulante;"]
[null,null,null," - % Eficiência da recuperação;"]
[null,null,null," - % Abertura da válvula frio;"]
[null,null,null," - % Abertura da válvula quente;"]
[null,null,null," - Estado dos Registos On-Off;"]
[null,null,null," - Ciclo de Funcionamento;"]
[null,null,null," - Ordem aos Ventiladores 1 (individual);"]
[null,null,null," - Ordem aos Ventiladores 2 (individual);"]
[null,null,null," - Temperatura Exterior;"]
[null,null,null," - Temperatura de Retorno;"]
[null,null,null," - Temperatura pós-recuperação;"]
[null,null,null," - Temperatura de Insuflação;"]
[null,null,null," - Temperatura de água fria ida;"]
[null,null,null," - Temperatura de água fria retorno;"]
[null,null,null," - Temperatura de água quente ida;"]
[null,null,null," - Temperatura de água quente retorno;"]
[null,null,null," - Pressão diferencial de Insuflação;"]
[null,null,null," - Caudal de Insuflação;"]
[null,null,null," - Pressão diferencial de Retorno;"]
[null,null,null," - Caudal de Retorno;"]
[null,null,null," - Falha de caudal;"]
[null,null,null," - Estado do filtro de Ar Novo;"]
[null,null,null," - Estado do filtro de Insuflação;"]
[null,null,null," - Estado do filtro de Retorno;"]
[null,null,null," - Estado do Fim de curso dos registos On-Off;"]
[null,null,null," - Estado de Avaria do Ventilador Insuflação;"]
[null,null,null," - Estado de Avaria do Ventilador Retorno;"]
[null,null,null,null,null,null,null,null,null,null,null,null,null,null,null,null,null,null,null,null,null,null,null,null,null,null,"FALTA VEX 8"]
[null,"QGTC 3","AVAC 3","VEX 9"]
[null,"\"","\"","Arranque / Paragem automático",null,null,null,1,null,null,null,null,null,null,null,null,null,null,null,null,null,1,"YSLY-OZ 2x1"]
[null,"\"","\"","Comutador Man-0-Automático",null,1,null,null,null,null,null,null,null,null,"E","A",null,null,"N"]
[null,"\"","\"","Estado funcionamento (pressostato)",null,1,null,null,null,null,null,null,null,null,"F","A",null,null,"N",1,"DWG930.80",1,"YSLY-OZ 2x1"]
[null,"\"","\"","Avaria",null,1,null,null,null,null,null,null,null,null,"E","E",null,null,"N"]
[]
[null,"QGTC 3","AVAC 3","BC. AQS 3"]
[null,"\"","\"","Arranque / Paragem automático",null,null,null,1,null,null,null,null,null,null,null,null,null,null,null,null,null,1,"YSLY-OZ 2x1"]
[null,"\"","\"","Comutador Man-0-Automático",null,1,null,null,null,null,null,null,null,null,"E","A",null,null,"N"]
[null,"\"","\"","Avaria",null,1,null,null,null,null,null,null,null,null,"E","A",null,null,"N"]
[null,"\"","\"","Temperatura depósito - nível alto",null,null,null,null,1,null,null,null,null,null,null,null,null,null,null,1,"EGT348F102",null,"Olflex 135CH 2x1"]
[null,"\"","\"","Temperatura depósito - nível baixo",null,null,null,null,1,null,null,null,null,null,null,null,null,null,null,1,"EGT348F102",null,"Olflex 135CH 2x1"]
[null,"\"","\"","Resistência eléctrica - comando",null,null,null,1,null,null,null,null,null,null,null,null,null,null,null,null,null,null,"Olflex 130H 2x1"]
[]
[null,"QGTC 3","AVAC 3","BC. AQS 4"]
[null,"\"","\"","Arranque / Paragem automático",null,null,null,1,null,null,null,null,null,null,null,null,null,null,null,null,null,1,"YSLY-OZ 2x1"]
[null,"\"","\"","Comutador Man-0-Automático",null,1,null,null,null,null,null,null,null,null,"E","A",null,null,"N"]
[null,"\"","\"","Avaria",null,1,null,null,null,null,null,null,null,null,"E","A",null,null,"N"]
[null,"\"","\"","Temperatura depósito - nível alto",null,null,null,null,1,null,null,null,null,null,null,null,null,null,null,1,"EGT348F102",null,"Olflex 135CH 2x1"]
[null,"\"","\"","Temperatura depósito - nível baixo",null,null,null,null,1,null,null,null,null,null,null,null,null,null,null,1,"EGT348F102",null,"Olflex 135CH 2x1"]
[null,"\"","\"","Resistência eléctrica - comando",null,null,null,1,null,null,null,null,null,null,null,null,null,null,null,null,null,null,"Olflex 130H 2x1"]
[]
[null,"QGTC 3","AVAC 3","Central Registos Corta-Fogo"]
[null,null,null,"Sinais via protocolo de comunicação",null,null,null,null,null,null,null,50,"Interface de comunicação (BACNET IP)",null,null,null,null,null,null,null,null,1,"UTP cat6"]
[]
[null,null,null,"Contagem de energia térmica"]
[null,"QGTC 3","AVAC 3","Contagem de energia térmica - AQ (Ala esquerda)",null,null,null,null,null,null,null,10,"M-Bus",null,null,null,null,null,null,1,"CET-AQ-DN80F",1,"Datacel 2x2x0,5",1]
[null,"\"","\"","Contagem de energia térmica - AF (Ala esquerda)",null,null,null,null,null,null,null,10,"M-Bus",null,null,null,null,null,null,1,"CET-AF-DN80F",1,"Datacel 2x2x0,5",1]
[null,"\"","\"","Contagem de energia térmica - AF (Ala central)",null,null,null,null,null,null,null,10,"M-Bus",null,null,null,null,null,null,1,"CET-AF-DN125F",1,"Datacel 2x2x0,5",1]
[null,"\"","\"","Contagem de energia térmica - AQ (Ala central)",null,null,null,null,null,null,null,10,"M-Bus",null,null,null,null,null,null,1,"CET-AQ-DN125F",1,"Datacel 2x2x0,5",1]
[null,"\"","\"","Contagem de energia térmica - AF (Ala direita)",null,null,null,null,null,null,null,10,"M-Bus",null,null,null,null,null,null,1,"CET-AF-DN100F",1,"Datacel 2x2x0,5",1]
[null,"\"","\"","Contagem de energia térmica - AQ (Ala direita)",null,null,null,null,null,null,null,10,"M-Bus",null,null,null,null,null,null,1,"CET-AQ-DN100F",1,"Datacel 2x2x0,5",1]
[]
[null,null,null,"Instalações elétricas"]
[null,"QGTC 3","QE","(C0) QP-SC2 Piso 2"]
[null,"\"","\"","Posição interruptor geral",null,1,null,null,null,null,null,null,null,null,"E","A",null,null,"N",null,null,1,"YSLY-JZ 25G1"]
[null,"\"","\"","Posição Disjuntores Quadros Parciais",null,15,null,null,null,null,null,null,null,null,"E","A",null,null,"N"]
[null,"\"","\"","Disparo disjuntor alimentação - (C0) QP-SC2",null,1,null,null,null,null,null,null,null,null,"F","A",null,null,"N"]
[null,"\"","\"","Analisador de rede (C0) QP-SC2",null,null,null,null,null,null,null,20,"Modbus-Rtu",null,null,null,null,null,null,null,null,1,"Datacel 2x2x0,5"]
[null,"\"","\"","Integração iluminação DALI",null,null,null,null,null,null,null,{"$f":"8*128","v":1024},"DALI",null,null,null,null,null,null,null,null,16,"DALI 1x2x2"]
[null,"\"","\"","Equipamentos KNX",null,null,null,null,null,null,null,{"$f":"64*8","v":512},"KNX",null,null,null,null,null,null,null,null,8,"EIB 2x2x0,5"]
[]
[null,null,null,"Pontos Controlo",null,{"$f":"SUM(F5:F94)","v":29},0,6,4,0,0,1731]
[null,null,null,"Reserva (+10%)",null,{"$f":"CEILING(F95*0.1,1)","v":3},0,1,1,0,0,174]
[null,null,null,"TOTAL PONTOS CONTROLO",null,{"$f":"F95+F96","v":32},0,7,5,0,0,1905]

{"sheet":"QGTC_4","index":3,"n_rows":158,"n_cols":26,"rows_kept":158,"cut":false,"hidden":false,"merged":[[8,24,8,25],[9,24,9,25],[5,24,5,25],[6,24,6,25],[1,1,3,3],[1,5,1,18],[1,19,4,20],[1,21,4,22],[1,24,2,25],[2,5,2,18],[3,5,3,12],[3,14,3,18],[4,24,4,25],[16,24,16,25],[17,24,17,25],[18,24,18,25],[19,24,19,25],[20,24,20,25],[21,24,21,25],[10,24,10,25],[11,24,11,25],[12,24,12,25],[13,24,13,25],[14,24,14,25],[15,24,15,25],[28,24,28,25],[29,24,29,25],[30,24,30,25],[31,24,31,25],[32,24,32,25],[33,24,33,25],[22,24,22,25],[23,24,23,25],[24,24,24,25],[25,24,25,25],[26,24,26,25],[27,24,27,25],[40,24,40,25],[41,24,41,25],[42,24,42,25],[43,24,43,25],[44,24,44,25],[45,24,45,25],[34,24,34,25],[35,24,35,25],[36,24,36,25],[37,24,37,25],[38,24,38,25],[39,24,39,25],[52,24,52,25],[53,24,53,25],[54,24,54,25],[55,24,55,25],[56,24,56,25],[57,24,57,25],[46,24,46,25],[47,24,47,25],[48,24,48,25],[49,24,49,25],[50,24,50,25],[51,24,51,25],[64,24,64,25],[65,24,65,25],[66,24,66,25],[67,24,67,25],[68,24,68,25],[69,24,69,25],[58,24,58,25],[59,24,59,25],[60,24,60,25],[61,24,61,25],[62,24,62,25],[63,24,63,25],[76,24,76,25],[77,24,77,25],[78,24,78,25],[79,24,79,25],[80,24,80,25],[81,24,81,25],[70,24,70,25],[71,24,71,25],[72,24,72,25],[73,24,73,25],[74,24,74,25],[75,24,75,25],[88,24,88,25],[89,24,89,25],[90,24,90,25],[91,24,91,25],[92,24,92,25],[93,24,93,25],[82,24,82,25],[83,24,83,25],[84,24,84,25],[85,24,85,25],[86,24,86,25],[100,24,100,25],[101,24,101,25],[102,24,102,25],[103,24,103,25],[104,24,104,25],[105,24,105,25],[94,24,94,25],[95,24,95,25],[96,24,96,25],[97,24,97,25],[98,24,98,25],[99,24,99,25],[112,24,112,25],[113,24,113,25],[114,24,114,25],[115,24,115,25],[116,24,116,25],[117,24,117,25],[106,24,106,25],[107,24,107,25],[108,24,108,25],[109,24,109,25],[110,24,110,25],[111,24,111,25],[125,24,125,25],[126,24,126,25],[127,24,127,25],[128,24,128,25],[130,24,130,25],[131,24,131,25],[118,24,118,25],[119,24,119,25],[120,24,120,25],[121,24,121,25],[122,24,122,25],[124,24,124,25],[147,21,149,21],[147,22,149,22],[147,24,147,25],[148,24,148,25],[149,24,149,25],[132,24,132,25],[133,24,133,25],[134,24,134,25],[140,24,140,25],[141,24,141,25],[142,24,142,25],[157,24,157,25],[158,24,158,25],[155,24,155,25],[156,24,156,25],[150,24,150,25],[151,24,151,25],[152,24,152,25],[143,24,143,25],[145,24,145,25],[146,24,146,25]]}
[]
[null,null,null,null,null,"SISTEMA DE GESTÃO TÉCNICA CENTRALIZADA",null,null,null,null,null,null,null,null,null,null,null,null,null,"Equip.Campo",null,"Cabos",null,null,"Obra: \"PROJETO DE ARQUITETURA E ESPECIALIDADES DO TOPO NORTE DO ESTÁDIO MUNICIPAL DE LEIRIA PARA CENTRO DE NEGÓCIOS E CENTRO ASSOCIATIVO MUNICIPAL\""]
[null,null,null,null,null,"LISTA DE PONTOS"]
[null,null,null,null,null,"Tipo Sinal",null,null,null,null,null,null,null,null,"Informação / Comando",null,null,null,null,null,null,null,null,null,"Rev.: 02","Data: 2025/09/24"]
[null,"Quadro","Inst.","Descrição",null,"ED","Edi","SD","Eap","Eaa","SA","Bus","Protocolo",null,"Alarme","Sinal","Reg","Ind.","Acum.",null,null,null,null,null,"Observações"]
[]
[null,null,null,"QGTC_4"]
[]
[null,null,null,"Instalações mecânicas PISO 3"]
[]
[null,"QGTC 4","AVAC 4","QE.AVAC 4",null,null,null,null,null,null,null,null,null,null,null,null,null,null,null,null,null,1,"YSLY-JZ 16G1"]
[null,"\"","\"","Posição interruptor geral",null,1,null,null,null,null,null,null,null,null,"E","A",null,null,"N"]
[null,"\"","\"","Disparo agrupado int. diferenciais",null,1,null,null,null,null,null,null,null,null,"E","A",null,null,"N"]
[null,"\"","\"","Actuação CDI",null,1,null,null,null,null,null,null,null,null,"E","A",null,null,"N"]
[null,"\"","\"","Analisador de rede",null,null,null,null,null,null,null,20,"Modbus-Rtu (RS485)",null,null,null,null,null,null,null,null,1,"Datacel 2x2x0,5"]
[]
[null,"QGTC 4","AVAC 4","REC 10"]
[null,"\"","\"","Arranque / Paragem automático",null,null,null,1,null,null,null,null,null,null,null,null,null,null,null,null,null,1,"YSLY-OZ 2x1"]
[null,"\"","\"","Comutador Man-0-Automático",null,1,null,null,null,null,null,null,null,null,"E","A",null,null,"N"]
[null,"\"","\"","Disparo de proteções",null,1,null,null,null,null,null,null,null,null,"E","A",null,null,"N"]
[null,"\"","\"","Sinais via protocolo de comunicação",null,null,null,null,null,null,null,45,"BACnet/IP",null,null,null,null,null,null,null,null,1,"UTP Cat6"]
[null,null,null,"REC 10"]
[null,null,null," - % Ventilador Insuflação;"]
[null,null,null," - % Ventilador Retorno;"]
[null,null,null," - % Registo Modulante;"]
[null,null,null," - % Eficiência da recuperação;"]
[null,null,null," - % Abertura da válvula frio;"]
[null,null,null," - % Abertura da válvula quente;"]
[null,null,null," - Estado dos Registos On-Off;"]
[null,null,null," - Ciclo de Funcionamento;"]
[null,null,null," - Ordem aos Ventiladores 1 (individual);"]
[null,null,null," - Ordem aos Ventiladores 2 (individual);"]
[null,null,null," - Temperatura Exterior;"]
[null,null,null," - Temperatura de Retorno;"]
[null,null,null," - Temperatura pós-recuperação;"]
[null,null,null," - Temperatura de Insuflação;"]
[null,null,null," - Temperatura de água fria ida;"]
[null,null,null," - Temperatura de água fria retorno;"]
[null,null,null," - Temperatura de água quente ida;"]
[null,null,null," - Temperatura de água quente retorno;"]
[null,null,null," - Pressão diferencial de Insuflação;"]
[null,null,null," - Caudal de Insuflação;"]
[null,null,null," - Pressão diferencial de Retorno;"]
[null,null,null," - Caudal de Retorno;"]
[null,null,null," - Falha de caudal;"]
[null,null,null," - Estado do filtro de Ar Novo;"]
[null,null,null," - Estado do filtro de Insuflação;"]
[null,null,null," - Estado do filtro de Retorno;"]
[null,null,null," - Estado do Fim de curso dos registos On-Off;"]
[null,null,null," - Estado de Avaria do Ventilador Insuflação;"]
[null,null,null," - Estado de Avaria do Ventilador Retorno;"]
[]
[null,"QGTC 4","AVAC 4","REC 11"]
[null,"\"","\"","Arranque / Paragem automático",null,null,null,1,null,null,null,null,null,null,null,null,null,null,null,null,null,1,"YSLY-OZ 2x1"]
[null,"\"","\"","Comutador Man-0-Automático",null,1,null,null,null,null,null,null,null,null,"E","A",null,null,"N"]
[null,"\"","\"","Disparo de proteções",null,1,null,null,null,null,null,null,null,null,"E","A",null,null,"N"]
[null,"\"","\"","Sinais via protocolo de comunicação",null,null,null,null,null,null,null,45,"BACnet/IP",null,null,null,null,null,null,null,null,1,"UTP Cat6"]
[null,null,null,"REC 11"]
[null,null,null," - % Ventilador Insuflação;"]
[null,null,null," - % Ventilador Retorno;"]
[null,null,null," - % Registo Modulante;"]
[null,null,null," - % Eficiência da recuperação;"]
[null,null,null," - % Abertura da válvula frio;"]
[null,null,null," - % Abertura da válvula quente;"]
[null,null,null," - Estado dos Registos On-Off;"]
[null,null,null," - Ciclo de Funcionamento;"]
[null,null,null," - Ordem aos Ventiladores 1 (individual);"]
[null,null,null," - Ordem aos Ventiladores 2 (individual);"]
[null,null,null," - Temperatura Exterior;"]
[null,null,null," - Temperatura de Retorno;"]
[null,null,null," - Temperatura pós-recuperação;"]
[null,null,null," - Temperatura de Insuflação;"]
[null,null,null," - Temperatura de água fria ida;"]
[null,null,null," - Temperatura de água fria retorno;"]
[null,null,null," - Temperatura de água quente ida;"]
[null,null,null," - Temperatura de água quente retorno;"]
[null,null,null," - Pressão diferencial de Insuflação;"]
[null,null,null," - Caudal de Insuflação;"]
[null,null,null," - Pressão diferencial de Retorno;"]
[null,null,null," - Caudal de Retorno;"]
[null,null,null," - Falha de caudal;"]
[null,null,null," - Estado do filtro de Ar Novo;"]
[null,null,null," - Estado do filtro de Insuflação;"]
[null,null,null," - Estado do filtro de Retorno;"]
[null,null,null," - Estado do Fim de curso dos registos On-Off;"]
[null,null,null," - Estado de Avaria do Ventilador Insuflação;"]
[null,null,null," - Estado de Avaria do Ventilador Retorno;"]
[]
[null,"QGTC 4","AVAC 4","REC 12"]
[null,"\"","\"","Arranque / Paragem automático",null,null,null,1,null,null,null,null,null,null,null,null,null,null,null,null,null,1,"YSLY-OZ 2x1"]
[null,"\"","\"","Comutador Man-0-Automático",null,1,null,null,null,null,null,null,null,null,"E","A",null,null,"N"]
[null,"\"","\"","Disparo de proteções",null,1,null,null,null,null,null,null,null,null,"E","A",null,null,"N"]
[null,"\"","\"","Sinais via protocolo de comunicação",null,null,null,null,null,null,null,45,"BACnet/IP",null,null,null,null,null,null,null,null,1,"UTP Cat6"]
[null,null,null,"REC 12"]
[null,null,null," - % Ventilador Insuflação;"]
[null,null,null," - % Ventilador Retorno;"]
[null,null,null," - % Registo Modulante;"]
[null,null,null," - % Eficiência da recuperação;"]
[null,null,null," - % Abertura da válvula frio;"]
[null,null,null," - % Abertura da válvula quente;"]
[null,null,null," - Estado dos Registos On-Off;"]
[null,null,null," - Ciclo de Funcionamento;"]
[null,null,null," - Ordem aos Ventiladores 1 (individual);"]
[null,null,null," - Ordem aos Ventiladores 2 (individual);"]
[null,null,null," - Temperatura Exterior;"]
[null,null,null," - Temperatura de Retorno;"]
[null,null,null," - Temperatura pós-recuperação;"]
[null,null,null," - Temperatura de Insuflação;"]
[null,null,null," - Temperatura de água fria ida;"]
[null,null,null," - Temperatura de água fria retorno;"]
[null,null,null," - Temperatura de água quente ida;"]
[null,null,null," - Temperatura de água quente retorno;"]
[null,null,null," - Pressão diferencial de Insuflação;"]
[null,null,null," - Caudal de Insuflação;"]
[null,null,null," - Pressão diferencial de Retorno;"]
[null,null,null," - Caudal de Retorno;"]
[null,null,null," - Falha de caudal;"]
[null,null,null," - Estado do filtro de Ar Novo;"]
[null,null,null," - Estado do filtro de Insuflação;"]
[null,null,null," - Estado do filtro de Retorno;"]
[null,null,null," - Estado do Fim de curso dos registos On-Off;"]
[null,null,null," - Estado de Avaria do Ventilador Insuflação;"]
[null,null,null," - Estado de Avaria do Ventilador Retorno;"]
[]
[null,"QGTC 4","AVAC 4","VEX 10"]
[null,"\"","\"","Arranque / Paragem automático",null,null,null,1,null,null,null,null,null,null,null,null,null,null,null,null,null,1,"YSLY-OZ 2x1"]
[null,"\"","\"","Comutador Man-0-Automático",null,1,null,null,null,null,null,null,null,null,"E","A",null,null,"N"]
[null,"\"","\"","Estado funcionamento (pressostato)",null,1,null,null,null,null,null,null,null,null,"F","A",null,null,"N",1,"DWG930.80",1,"YSLY-OZ 2x1"]
[null,"\"","\"","Avaria",null,1,null,null,null,null,null,null,null,null,"E","E",null,null,"N"]
[]
[null,"QGTC 4","AVAC 4","VEX 12"]
[null,"\"","\"","Arranque / Paragem automático",null,null,null,1,null,null,null,null,null,null,null,null,null,null,null,null,null,1,"YSLY-OZ 2x1"]
[null,"\"","\"","Comutador Man-0-Automático",null,1,null,null,null,null,null,null,null,null,"E","A",null,null,"N"]
[null,"\"","\"","Estado funcionamento (pressostato)",null,1,null,null,null,null,null,null,null,null,"F","A",null,null,"N",1,"DWG930.80",1,"YSLY-OZ 2x1"]
[null,"\"","\"","Avaria",null,1,null,null,null,null,null,null,null,null,"E","E",null,null,"N"]
[]
[null,"QGTC 4","AVAC 4","Central Registos Corta-Fogo"]
[null,null,null,"Sinais via protocolo de comunicação",null,null,null,null,null,null,null,50,"BACnet/IP",null,null,null,null,null,null,null,null,1,"UTP cat6"]
[]
[null,null,null,"Contagem de energia térmica"]
[null,"QGTC 4","AVAC 4","Contagem de energia térmica - AQ (Ala esquerda)",null,null,null,null,null,null,null,10,"M-Bus",null,null,null,null,null,null,1,"CET-AQ-DN100F",1,"Datacel 2x2x0,5",1]
[null,"\"","\"","Contagem de energia térmica - AF (Ala esquerda)",null,null,null,null,null,null,null,10,"M-Bus",null,null,null,null,null,null,1,"CET-AF-DN100F",1,"Datacel 2x2x0,5",1]
[null,"\"","\"","Contagem de energia térmica - AF (Ala central)",null,null,null,null,null,null,null,10,"M-Bus",null,null,null,null,null,null,1,"CET-AF-DN100F",1,"Datacel 2x2x0,5",1]
[null,"\"","\"","Contagem de energia térmica - AQ (Ala central)",null,null,null,null,null,null,null,10,"M-Bus",null,null,null,null,null,null,1,"CET-AQ-DN100F",1,"Datacel 2x2x0,5",1]
[]
[null,null,null,"Instalações elétricas"]
[null,"QGTC 4","QE","(C0) QP-SC3 Piso 3"]
[null,"\"","\"","Posição interruptor geral",null,1,null,null,null,null,null,null,null,null,"E","A",null,null,"N",null,null,1,"YSLY-JZ 25G1"]
[null,"\"","\"","Posição Disjuntores Quadros Parciais",null,15,null,null,null,null,null,null,null,null,"E","A",null,null,"N"]
[null,"\"","\"","Disparo disjuntor alimentação - (C0) QP-SC3",null,1,null,null,null,null,null,null,null,null,"F","A",null,null,"N"]
[null,"\"","\"","Analisador de rede (C0) QP-SC3",null,null,null,null,null,null,null,20,"Modbus-Rtu",null,null,null,null,null,null,null,null,1,"Datacel 2x2x0,5"]
[null,"\"","\"","Integração iluminação DALI",null,null,null,null,null,null,null,{"$f":"6*128","v":768},"DALI",null,null,null,null,null,null,null,null,12,"DALI 1x2x2"]
[null,"\"","\"","Equipamentos KNX",null,null,null,null,null,null,null,{"$f":"64*6","v":384},"KNX",null,null,null,null,null,null,null,null,6,"EIB 2x2x0,5"]
[]
[]
[null,null,null,"Pontos Controlo",null,{"$f":"SUM(F5:F155)","v":32},0,5,0,0,0,1417]
[null,null,null,"Reserva (+10%)",null,{"$f":"CEILING(F156*0.1,1)","v":4},0,1,0,0,0,142]
[null,null,null,"TOTAL PONTOS CONTROLO",null,{"$f":"F156+F157","v":36},0,6,0,0,0,1559]

{"sheet":"QGTC_5","index":4,"n_rows":139,"n_cols":26,"rows_kept":139,"cut":false,"hidden":false,"merged":[[128,21,130,21],[128,22,130,22],[128,24,128,25],[129,24,129,25],[130,24,130,25],[112,24,112,25],[113,24,113,25],[114,24,114,25],[115,24,115,25],[116,24,116,25],[118,24,118,25],[119,24,119,25],[120,21,122,21],[120,22,122,22],[120,24,120,25],[121,24,121,25],[122,24,122,25],[93,24,93,25],[94,24,94,25],[95,24,95,25],[111,24,111,25],[86,24,86,25],[87,24,87,25],[89,24,89,25],[90,24,90,25],[91,24,91,25],[97,24,97,25],[98,24,98,25],[99,24,99,25],[107,24,107,25],[108,24,108,25],[83,24,83,25],[84,24,84,25],[85,24,85,25],[76,24,76,25],[77,24,77,25],[78,24,78,25],[79,24,79,25],[80,24,80,25],[92,24,92,25],[9,24,9,25],[10,24,10,25],[22,24,22,25],[11,24,11,25],[12,24,12,25],[13,24,13,25],[14,24,14,25],[71,24,71,25],[72,24,72,25],[66,24,66,25],[67,24,67,25],[68,24,68,25],[69,24,69,25],[70,24,70,25],[5,24,5,25],[6,24,6,25],[7,24,7,25],[1,1,3,3],[1,5,1,18],[1,19,4,20],[1,21,4,22],[1,24,2,25],[2,5,2,18],[3,5,3,12],[3,14,3,18],[4,24,4,25],[15,24,15,25],[16,24,16,25],[17,24,17,25],[18,24,18,25],[19,24,19,25],[20,24,20,25],[21,24,21,25],[34,24,34,25],[23,24,23,25],[24,24,24,25],[25,24,25,25],[26,24,26,25],[27,24,27,25],[28,24,28,25],[29,24,29,25],[30,24,30,25],[31,24,31,25],[32,24,32,25],[33,24,33,25],[46,24,46,25],[35,24,35,25],[36,24,36,25],[37,24,37,25],[38,24,38,25],[39,24,39,25],[40,24,40,25],[41,24,41,25],[42,24,42,25],[43,24,43,25],[44,24,44,25],[45,24,45,25],[47,24,47,25],[48,24,48,25],[49,24,49,25],[50,24,50,25],[51,24,51,25],[100,24,100,25],[101,24,101,25],[54,24,54,25],[55,24,55,25],[56,24,56,25],[57,24,57,25],[58,24,58,25],[59,24,59,25],[60,24,60,25],[61,24,61,25],[62,24,62,25],[63,24,63,25],[64,24,64,25],[65,24,65,25],[73,24,73,25],[74,24,74,25],[75,24,75,25],[81,24,81,25],[82,24,82,25],[138,24,138,25],[139,24,139,25],[136,24,136,25],[137,24,137,25],[123,24,123,25],[124,24,124,25],[125,24,125,25],[127,24,127,25],[131,24,131,25],[132,24,132,25],[133,24,133,25]]}
[]
[null,null,null,null,null,"SISTEMA DE GESTÃO TÉCNICA CENTRALIZADA",null,null,null,null,null,null,null,null,null,null,null,null,null,"Equip.Campo",null,"Cabos",null,null,"Obra: \"PROJETO DE ARQUITETURA E ESPECIALIDADES DO TOPO NORTE DO ESTÁDIO MUNICIPAL DE LEIRIA PARA CENTRO DE NEGÓCIOS E CENTRO ASSOCIATIVO MUNICIPAL\""]
[null,null,null,null,null,"LISTA DE PONTOS"]
[null,null,null,null,null,"Tipo Sinal",null,null,null,null,null,null,null,null,"Informação / Comando",null,null,null,null,null,null,null,null,null,"Rev.: 02","Data: 2025/09/24"]
[null,"Quadro","Inst.","Descrição",null,"ED","Edi","SD","Eap","Eaa","SA","Bus","Protocolo",null,"Alarme","Sinal","Reg","Ind.","Acum.",null,null,null,null,null,"Observações"]
[]
[null,null,null,"QGTC_5"]
[]
[]
[null,null,null,"Instalações mecânicas PISO 4"]
[]
[null,"QGTC 5","AVAC 5","QE.AVAC 5",null,null,null,null,null,null,null,null,null,null,null,null,null,null,null,null,null,1,"YSLY-JZ 16G1"]
[null,"\"","\"","Posição interruptor geral",null,1,null,null,null,null,null,null,null,null,"E","A",null,null,"N"]
[null,"\"","\"","Disparo agrupado int. diferenciais",null,1,null,null,null,null,null,null,null,null,"E","A",null,null,"N"]
[null,"\"","\"","Actuação CDI",null,1,null,null,null,null,null,null,null,null,"E","A",null,null,"N"]
[null,"\"","\"","Analisador de rede",null,null,null,null,null,null,null,20,"Modbus-Rtu (RS485)",null,null,null,null,null,null,null,null,1,"Datacel 2x2x0,5"]
[]
[null,"QGTC 5","AVAC 5","REC 13"]
[null,"\"","\"","Arranque / Paragem automático",null,null,null,1,null,null,null,null,null,null,null,null,null,null,null,null,null,1,"YSLY-OZ 2x1"]
[null,"\"","\"","Comutador Man-0-Automático",null,1,null,null,null,null,null,null,null,null,"E","A",null,null,"N"]
[null,"\"","\"","Avaria",null,1,null,null,null,null,null,null,null,null,"E","A",null,null,"N"]
[null,"\"","\"","Sinais via protocolo de comunicação",null,null,null,null,null,null,null,45,"BACnet/IP",null,null,null,null,null,null,null,null,1,"UTP Cat6"]
[null,null,null,"REC 13"]
[null,null,null," - % Ventilador Insuflação;"]
[null,null,null," - % Ventilador Retorno;"]
[null,null,null," - % Registo Modulante;"]
[null,null,null," - % Eficiência da recuperação;"]
[null,null,null," - % Abertura da válvula frio;"]
[null,null,null," - % Abertura da válvula quente;"]
[null,null,null," - Estado dos Registos On-Off;"]
[null,null,null," - Ciclo de Funcionamento;"]
[null,null,null," - Ordem aos Ventiladores 1 (individual);"]
[null,null,null," - Ordem aos Ventiladores 2 (individual);"]
[null,null,null," - Temperatura Exterior;"]
[null,null,null," - Temperatura de Retorno;"]
[null,null,null," - Temperatura pós-recuperação;"]
[null,null,null," - Temperatura de Insuflação;"]
[null,null,null," - Temperatura de água fria ida;"]
[null,null,null," - Temperatura de água fria retorno;"]
[null,null,null," - Temperatura de água quente ida;"]
[null,null,null," - Temperatura de água quente retorno;"]
[null,null,null," - Pressão diferencial de Insuflação;"]
[null,null,null," - Caudal de Insuflação;"]
[null,null,null," - Pressão diferencial de Retorno;"]
[null,null,null," - Caudal de Retorno;"]
[null,null,null," - Falha de caudal;"]
[null,null,null," - Estado do filtro de Ar Novo;"]
[null,null,null," - Estado do filtro de Insuflação;"]
[null,null,null," - Estado do filtro de Retorno;"]
[null,null,null," - Estado do Fim de curso dos registos On-Off;"]
[null,null,null," - Estado de Avaria do Ventilador Insuflação;"]
[null,null,null," - Estado de Avaria do Ventilador Retorno;"]
[]
[null,"QGTC 5","AVAC 5","REC 14"]
[null,"\"","\"","Arranque / Paragem automático",null,null,null,1,null,null,null,null,null,null,null,null,null,null,null,null,null,1,"YSLY-OZ 2x1"]
[null,"\"","\"","Comutador Man-0-Automático",null,1,null,null,null,null,null,null,null,null,"E","A",null,null,"N"]
[null,"\"","\"","Avaria",null,1,null,null,null,null,null,null,null,null,"E","A",null,null,"N"]
[null,"\"","\"","Sinais via protocolo de comunicação",null,null,null,null,null,null,null,45,"BACnet/IP",null,null,null,null,null,null,null,null,1,"UTP Cat6"]
[null,null,null,"REC 14"]
[null,null,null," - % Ventilador Insuflação;"]
[null,null,null," - % Ventilador Retorno;"]
[null,null,null," - % Registo Modulante;"]
[null,null,null," - % Eficiência da recuperação;"]
[null,null,null," - % Abertura da válvula frio;"]
[null,null,null," - % Abertura da válvula quente;"]
[null,null,null," - Estado dos Registos On-Off;"]
[null,null,null," - Ciclo de Funcionamento;"]
[null,null,null," - Ordem aos Ventiladores 1 (individual);"]
[null,null,null," - Ordem aos Ventiladores 2 (individual);"]
[null,null,null," - Temperatura Exterior;"]
[null,null,null," - Temperatura de Retorno;"]
[null,null,null," - Temperatura pós-recuperação;"]
[null,null,null," - Temperatura de Insuflação;"]
[null,null,null," - Temperatura de água fria ida;"]
[null,null,null," - Temperatura de água fria retorno;"]
[null,null,null," - Temperatura de água quente ida;"]
[null,null,null," - Temperatura de água quente retorno;"]
[null,null,null," - Pressão diferencial de Insuflação;"]
[null,null,null," - Caudal de Insuflação;"]
[null,null,null," - Pressão diferencial de Retorno;"]
[null,null,null," - Caudal de Retorno;"]
[null,null,null," - Falha de caudal;"]
[null,null,null," - Estado do filtro de Ar Novo;"]
[null,null,null," - Estado do filtro de Insuflação;"]
[null,null,null," - Estado do filtro de Retorno;"]
[null,null,null," - Estado do Fim de curso dos registos On-Off;"]
[null,null,null," - Estado de Avaria do Ventilador Insuflação;"]
[null,null,null," - Estado de Avaria do Ventilador Retorno;"]
[]
[null,"QGTC 5","AVAC 5","BC. AQS 1"]
[null,"\"","\"","Arranque / Paragem automático",null,null,null,1,null,null,null,null,null,null,null,null,null,null,null,null,null,1,"YSLY-OZ 2x1"]
[null,"\"","\"","Comutador Man-0-Automático",null,1,null,null,null,null,null,null,null,null,"E","A",null,null,"N"]
[null,"\"","\"","Avaria",null,1,null,null,null,null,null,null,null,null,"E","A",null,null,"N"]
[null,"\"","\"","Temperatura depósito - nível alto",null,null,null,null,1,null,null,null,null,null,null,null,null,null,null,1,"EGT348F102",1,"LIHCH 2x1"]
[null,"\"","\"","Temperatura depósito - nível baixo",null,null,null,null,1,null,null,null,null,null,null,null,null,null,null,1,"EGT348F102",1,"LIHCH 2x1"]
[null,"\"","\"","Resistência eléctrica - comando",null,null,null,1,null,null,null,null,null,null,null,null,null,null,null,null,null,1,"YSLY-OZ 2x1"]
[]
[null,"QGTC 5","AVAC 5","VEX 11"]
[null,"\"","\"","Arranque / Paragem automático",null,null,null,1,null,null,null,null,null,null,null,null,null,null,null,null,null,1,"YSLY-OZ 2x1"]
[null,"\"","\"","Comutador Man-0-Automático",null,1,null,null,null,null,null,null,null,null,"E","A",null,null,"N"]
[null,"\"","\"","Estado funcionamento (pressostato)",null,1,null,null,null,null,null,null,null,null,"F","A",null,null,"N",1,"DWG930.80",1,"YSLY-OZ 2x1"]
[null,"\"","\"","Avaria",null,1,null,null,null,null,null,null,null,null,"E","E",null,null,"N"]
[]
[null,"QGTC 5","AVAC 5","Central Registos Corta-Fogo"]
[null,null,null,"Sinais via protocolo de comunicação",null,null,null,null,null,null,null,50,"Interface de comunicação (BACNET IP)",null,null,null,null,null,null,null,null,1,"UTP cat6"]
[]
[null,null,null,"Contagem de energia térmica"]
[null,"QGTC 5","AVAC 5","Contagem de energia térmica - AQ (Ala esquerda)",null,null,null,null,null,null,null,10,"M-Bus",null,null,null,null,null,null,1,"CET-AQ-DN100F",1,"Datacel 2x2x0,5",1]
[null,"\"","\"","Contagem de energia térmica - AF (Ala esquerda)",null,null,null,null,null,null,null,10,"M-Bus",null,null,null,null,null,null,1,"CET-AF-DN100F",1,"Datacel 2x2x0,5",1]
[]
[null,null,null,"Contagem de energia térmica"]
[null,"QGTC 5","AVAC 5","Contagem de energia térmica - AQ (Ala esquerda)",null,null,null,null,null,null,null,10,"M-Bus",null,null,null,null,null,null,1,"CET-AQ-DN80F",1,"Datacel 2x2x0,5",1]
[null,"\"","\"","Contagem de energia térmica - AF (Ala esquerda)",null,null,null,null,null,null,null,10,"M-Bus",null,null,null,null,null,null,1,"CET-AF-DN80F",1,"Datacel 2x2x0,5",1]
[null,"\"","\"","Contagem de energia térmica - AF (Ala central)",null,null,null,null,null,null,null,10,"M-Bus",null,null,null,null,null,null,1,"CET-AF-DN125F",1,"Datacel 2x2x0,5",1]
[null,"\"","\"","Contagem de energia térmica - AQ (Ala central)",null,null,null,null,null,null,null,10,"M-Bus",null,null,null,null,null,null,1,"CET-AQ-DN125F",1,"Datacel 2x2x0,5",1]
[null,"\"","\"","Contagem de energia térmica - AF (Ala direita)",null,null,null,null,null,null,null,10,"M-Bus",null,null,null,null,null,null,1,"CET-AF-DN100F",1,"Datacel 2x2x0,5",1]
[null,"\"","\"","Contagem de energia térmica - AQ (Ala direita)",null,null,null,null,null,null,null,10,"M-Bus",null,null,null,null,null,null,1,"CET-AQ-DN100F",1,"Datacel 2x2x0,5",1]
[]
[null,null,null,"Instalações elétricas"]
[null,"QGTC 5","QE","(C0) QP-SC4 Piso 4"]
[null,"\"","\"","Posição interruptor geral",null,1,null,null,null,null,null,null,null,null,"E","A",null,null,"N",null,null,1,"YSLY-JZ 25G1"]
[null,"\"","\"","Posição Disjuntores Quadros Parciais",null,15,null,null,null,null,null,null,null,null,"E","A",null,null,"N"]
[null,"\"","\"","Disparo disjuntor alimentação - (C0) QP-SC4",null,1,null,null,null,null,null,null,null,null,"F","A",null,null,"N"]
[null,"\"","\"","Analisador de rede (C0) QP-SC4",null,null,null,null,null,null,null,20,"Modbus-Rtu",null,null,null,null,null,null,null,null,1,"Datacel 2x2x0,5"]
[null,"\"","\"","Integração iluminação DALI",null,null,null,null,null,null,null,{"$f":"5*128","v":640},"DALI",null,null,null,null,null,null,null,null,10,"DALI 1x2x2"]
[null,"\"","\"","Equipamentos KNX",null,null,null,null,null,null,null,{"$f":"64*5","v":320},"KNX",null,null,null,null,null,null,null,null,5,"EIB 2x2x0,5"]
[]
[null,"QGTC 5","QE","(C0) QP-SC5 Piso 5"]
[null,"\"","\"","Posição interruptor geral",null,1,null,null,null,null,null,null,null,null,"E","A",null,null,"N",null,null,1,"YSLY-JZ 25G1"]
[null,"\"","\"","Posição Disjuntores Quadros Parciais",null,15,null,null,null,null,null,null,null,null,"E","A",null,null,"N"]
[null,"\"","\"","Disparo disjuntor alimentação - (C0) QP-SC5",null,1,null,null,null,null,null,null,null,null,"F","A",null,null,"N"]
[null,"\"","\"","Analisador de rede (C0) QP-SC5",null,null,null,null,null,null,null,20,"Modbus-Rtu",null,null,null,null,null,null,null,null,1,"Datacel 2x2x0,5"]
[null,"\"","\"","Integração iluminação DALI",null,null,null,null,null,null,null,{"$f":"3*128","v":384},"DALI",null,null,null,null,null,null,null,null,6,"DALI 1x2x2"]
[null,"\"","\"","Equipamentos KNX",null,null,null,null,null,null,null,{"$f":"3*64","v":192},"KNX",null,null,null,null,null,null,null,null,3,"EIB 2x2x0,5"]
[]
[]
[null,null,null,"Pontos Controlo",null,{"$f":"SUM(F5:F136)","v":46},0,5,2,0,0,1816]
[null,null,null,"Reserva (+10%)",null,{"$f":"CEILING(F137*0.1,1)","v":5},0,1,1,0,0,182]
[null,null,null,"TOTAL PONTOS CONTROLO",null,{"$f":"F137+F138","v":51},0,6,3,0,0,1998]

{"sheet":"QGTC_6","index":5,"n_rows":673,"n_cols":27,"rows_kept":673,"cut":false,"hidden":false,"merged":[[650,24,650,25],[651,24,651,25],[567,24,567,25],[568,24,568,25],[569,24,569,25],[570,24,570,25],[571,24,571,25],[572,24,572,25],[573,24,573,25],[574,24,574,25],[600,24,600,25],[579,24,579,25],[580,24,580,25],[582,24,582,25],[583,24,583,25],[584,24,584,25],[585,24,585,25],[576,24,576,25],[564,24,564,25],[565,24,565,25],[566,24,566,25],[646,21,648,21],[646,22,648,22],[646,24,646,25],[647,24,647,25],[648,24,648,25],[649,24,649,25],[555,24,555,25],[556,24,556,25],[557,24,557,25],[558,24,558,25],[559,24,559,25],[560,24,560,25],[561,24,561,25],[562,24,562,25],[563,24,563,25],[1,1,3,3],[1,5,1,18],[1,19,4,20],[1,21,4,22],[1,24,2,25],[2,5,2,18],[3,5,3,12],[3,14,3,18],[4,24,4,25],[11,24,11,25],[12,24,12,25],[13,24,13,25],[14,24,14,25],[15,24,15,25],[16,24,16,25],[5,24,5,25],[6,24,6,25],[7,24,7,25],[8,24,8,25],[9,24,9,25],[10,24,10,25],[17,24,17,25],[18,24,18,25],[25,24,25,25],[26,24,26,25],[27,24,27,25],[28,24,28,25],[19,24,19,25],[20,24,20,25],[21,24,21,25],[22,24,22,25],[23,24,23,25],[35,24,35,25],[36,24,36,25],[37,24,37,25],[39,24,39,25],[40,24,40,25],[41,24,41,25],[29,24,29,25],[30,24,30,25],[31,24,31,25],[32,24,32,25],[33,24,33,25],[34,24,34,25],[48,24,48,25],[49,24,49,25],[50,24,50,25],[51,24,51,25],[53,24,53,25],[54,24,54,25],[42,24,42,25],[43,24,43,25],[44,24,44,25],[45,24,45,25],[46,24,46,25],[47,24,47,25],[61,24,61,25],[62,24,62,25],[63,24,63,25],[64,24,64,25],[67,24,67,25],[68,24,68,25],[55,24,55,25],[56,24,56,25],[57,24,57,25],[58,24,58,25],[59,24,59,25],[60,24,60,25],[75,24,75,25],[78,24,78,25],[79,24,79,25],[80,24,80,25],[81,24,81,25],[69,24,69,25],[70,24,70,25],[71,24,71,25],[72,24,72,25],[73,24,73,25],[74,24,74,25],[89,24,89,25],[90,24,90,25],[91,24,91,25],[92,24,92,25],[93,24,93,25],[94,24,94,25],[82,24,82,25],[83,24,83,25],[84,24,84,25],[85,24,85,25],[86,24,86,25],[102,24,102,25],[103,24,103,25],[104,24,104,25],[105,24,105,25],[106,24,106,25],[107,24,107,25],[95,24,95,25],[96,24,96,25],[97,24,97,25],[100,24,100,25],[101,24,101,25],[115,24,115,25],[116,24,116,25],[117,24,117,25],[118,24,118,25],[119,24,119,25],[108,24,108,25],[111,24,111,25],[112,24,112,25],[113,24,113,25],[114,24,114,25],[128,24,128,25],[129,24,129,25],[130,24,130,25],[133,24,133,25],[134,24,134,25],[122,24,122,25],[123,24,123,25],[124,24,124,25],[125,24,125,25],[126,24,126,25],[127,24,127,25],[152,24,152,25],[153,24,153,25],[155,24,155,25],[156,24,156,25],[157,24,157,25],[158,24,158,25],[135,24,135,25],[137,24,137,25],[138,24,138,25],[139,24,139,25],[149,24,149,25],[150,24,150,25],[140,24,140,25],[141,24,141,25],[142,24,142,25],[143,24,143,25],[144,24,144,25],[145,24,145,25],[146,24,146,25],[147,24,147,25],[148,24,148,25],[151,24,151,25],[164,24,164,25],[165,24,165,25],[168,24,168,25],[169,24,169,25],[170,24,170,25],[171,24,171,25],[159,24,159,25],[160,24,160,25],[161,24,161,25],[162,24,162,25],[163,24,163,25],[177,24,177,25],[178,24,178,25],[181,24,181,25],[182,24,182,25],[183,24,183,25],[184,24,184,25],[172,24,172,25],[173,24,173,25],[174,24,174,25],[175,24,175,25],[176,24,176,25],[190,24,190,25],[191,24,191,25],[194,24,194,25],[195,24,195,25],[196,24,196,25],[197,24,197,25],[185,24,185,25],[186,24,186,25],[187,24,187,25],[188,24,188,25],[189,24,189,25],[203,24,203,25],[204,24,204,25],[207,24,207,25],[208,24,208,25],[209,24,209,25],[210,24,210,25],[198,24,198,25],[199,24,199,25],[200,24,200,25],[201,24,201,25],[202,24,202,25],[216,24,216,25],[217,24,217,25],[220,24,220,25],[221,24,221,25],[222,24,222,25],[223,24,223,25],[211,24,211,25],[212,24,212,25],[213,24,213,25],[214,24,214,25],[215,24,215,25],[229,24,229,25],[230,24,230,25],[233,24,233,25],[234,24,234,25],[235,24,235,25],[236,24,236,25],[224,24,224,25],[225,24,225,25],[226,24,226,25],[227,24,227,25],[228,24,228,25],[242,24,242,25],[243,24,243,25],[246,24,246,25],[247,24,247,25],[248,24,248,25],[249,24,249,25],[237,24,237,25],[238,24,238,25],[239,24,239,25],[240,24,240,25],[241,24,241,25],[255,24,255,25],[256,24,256,25],[259,24,259,25],[260,24,260,25],[261,24,261,25],[262,24,262,25],[250,24,250,25],[251,24,251,25],[252,24,252,25],[253,24,253,25],[254,24,254,25],[323,24,323,25],[324,24,324,25],[325,24,325,25],[326,24,326,25],[291,24,291,25],[292,24,292,25],[293,24,293,25],[294,24,294,25],[276,24,276,25],[277,24,277,25],[278,24,278,25],[279,24,279,25],[280,24,280,25],[295,24,295,25],[296,24,296,25],[297,24,297,25],[298,24,298,25],[299,24,299,25],[300,24,300,25],[286,24,286,25],[287,24,287,25],[288,24,288,25],[289,24,289,25],[290,24,290,25],[333,24,333,25],[334,24,334,25],[335,24,335,25],[336,24,336,25],[337,24,337,25],[338,24,338,25],[327,24,327,25],[328,24,328,25],[329,24,329,25],[330,24,330,25],[331,24,331,25],[332,24,332,25],[345,24,345,25],[346,24,346,25],[347,24,347,25],[348,24,348,25],[349,24,349,25],[350,24,350,25],[339,24,339,25],[340,24,340,25],[341,24,341,25],[342,24,342,25],[343,24,343,25],[344,24,344,25],[359,24,359,25],[360,24,360,25],[361,24,361,25],[362,24,362,25],[363,24,363,25],[364,24,364,25],[351,24,351,25],[352,24,352,25],[353,24,353,25],[354,24,354,25],[355,24,355,25],[356,24,356,25],[371,24,371,25],[372,24,372,25],[373,24,373,25],[374,24,374,25],[375,24,375,25],[376,24,376,25],[365,24,365,25],[366,24,366,25],[367,24,367,25],[368,24,368,25],[369,24,369,25],[370,24,370,25],[383,24,383,25],[384,24,384,25],[385,24,385,25],[386,24,386,25],[387,24,387,25],[388,24,388,25],[377,24,377,25],[378,24,378,25],[379,24,379,25],[380,24,380,25],[381,24,381,25],[382,24,382,25],[396,24,396,25],[397,24,397,25],[398,24,398,25],[399,24,399,25],[400,24,400,25],[401,24,401,25],[389,24,389,25],[390,24,390,25],[391,24,391,25],[392,24,392,25],[393,24,393,25],[395,24,395,25],[408,24,408,25],[409,24,409,25],[410,24,410,25],[411,24,411,25],[412,24,412,25],[413,24,413,25],[402,24,402,25],[403,24,403,25],[404,24,404,25],[405,24,405,25],[406,24,406,25],[407,24,407,25],[420,24,420,25],[421,24,421,25],[422,24,422,25],[423,24,423,25],[424,24,424,25],[425,24,425,25],[414,24,414,25],[415,24,415,25],[416,24,416,25],[417,24,417,25],[418,24,418,25],[419,24,419,25],[436,24,436,25],[437,24,437,25],[438,24,438,25],[426,24,426,25],[427,24,427,25],[428,24,428,25],[429,24,429,25],[431,24,431,25],[432,24,432,25],[463,24,463,25],[464,24,464,25],[465,24,465,25],[445,24,445,25],[446,24,446,25],[447,24,447,25],[448,24,448,25],[449,24,449,25],[450,24,450,25],[621,24,621,25],[474,24,474,25],[475,24,475,25],[476,24,476,25],[477,24,477,25],[473,24,473,25],[478,24,478,25],[479,24,479,25],[480,24,480,25],[540,24,540,25],[541,24,541,25],[542,24,542,25],[543,24,543,25],[544,24,544,25],[545,24,545,25],[546,24,546,25],[547,24,547,25],[548,24,548,25],[549,24,549,25],[550,24,550,25],[551,24,551,25],[552,24,552,25],[553,24,553,25],[554,24,554,25],[613,24,613,25],[614,24,614,25],[577,24,577,25],[578,24,578,25],[586,24,586,25],[588,24,588,25],[589,24,589,25],[590,24,590,25],[591,24,591,25],[592,24,592,25],[602,24,602,25],[603,24,603,25],[604,24,604,25],[606,24,606,25],[607,24,607,25],[608,24,608,25],[609,24,609,25],[610,24,610,25],[612,24,612,25],[638,21,640,21],[638,22,640,22],[638,24,638,25],[639,24,639,25],[640,24,640,25],[641,24,641,25],[594,24,594,25],[595,24,595,25],[596,24,596,25],[597,24,597,25],[598,24,598,25],[631,24,631,25],[624,24,624,25],[625,24,625,25],[615,24,615,25],[616,24,616,25],[632,24,632,25],[633,24,633,25],[622,24,622,25],[623,24,623,25],[618,24,618,25],[619,24,619,25],[620,24,620,25],[601,24,601,25],[670,24,670,25],[671,24,671,25],[672,24,672,25],[673,24,673,25],[658,24,658,25],[660,24,660,25],[661,24,661,25],[662,24,662,25],[663,24,663,25],[664,24,664,25],[642,24,642,25],[643,24,643,25],[635,24,635,25],[637,24,637,25],[645,24,645,25],[281,24,281,25],[282,24,282,25],[268,24,268,25],[269,24,269,25],[272,24,272,25],[273,24,273,25],[274,24,274,25],[275,24,275,25],[311,24,311,25],[312,24,312,25],[319,24,319,25],[468,24,468,25],[469,24,469,25],[470,24,470,25],[471,24,471,25],[472,24,472,25],[313,24,313,25],[314,24,314,25],[315,24,315,25],[263,24,263,25],[264,24,264,25],[265,24,265,25],[266,24,266,25],[267,24,267,25],[307,24,307,25],[308,24,308,25],[309,24,309,25],[310,24,310,25],[301,24,301,25],[302,24,302,25],[303,24,303,25],[304,24,304,25],[305,24,305,25],[306,24,306,25],[316,24,316,25],[317,24,317,25],[318,24,318,25],[457,24,457,25],[458,24,458,25],[459,24,459,25],[460,24,460,25],[461,24,461,25],[462,24,462,25],[451,24,451,25],[452,24,452,25],[453,24,453,25],[454,24,454,25],[455,24,455,25],[456,24,456,25],[439,24,439,25],[440,24,440,25],[441,24,441,25],[442,24,442,25],[443,24,443,25],[444,24,444,25],[433,24,433,25],[434,24,434,25],[435,24,435,25],[487,24,487,25],[488,24,488,25],[489,24,489,25],[490,24,490,25],[491,24,491,25],[492,24,492,25],[481,24,481,25],[482,24,482,25],[483,24,483,25],[484,24,484,25],[485,24,485,25],[486,24,486,25],[499,24,499,25],[500,24,500,25],[501,24,501,25],[502,24,502,25],[504,24,504,25],[505,24,505,25],[493,24,493,25],[494,24,494,25],[495,24,495,25],[496,24,496,25],[497,24,497,25],[498,24,498,25],[512,24,512,25],[513,24,513,25],[514,24,514,25],[515,24,515,25],[516,24,516,25],[517,24,517,25],[506,24,506,25],[507,24,507,25],[508,24,508,25],[509,24,509,25],[510,24,510,25],[511,24,511,25],[524,24,524,25],[525,24,525,25],[526,24,526,25],[527,24,527,25],[528,24,528,25],[529,24,529,25],[518,24,518,25],[519,24,519,25],[520,24,520,25],[521,24,521,25],[522,24,522,25],[523,24,523,25],[536,24,536,25],[537,24,537,25],[538,24,538,25],[530,24,530,25],[531,24,531,25],[532,24,532,25],[533,24,533,25],[534,24,534,25],[535,24,535,25]]}
[]
[null,null,null,null,null,"SISTEMA DE GESTÃO TÉCNICA CENTRALIZADA",null,null,null,null,null,null,null,null,null,null,null,null,null,"Equip.Campo",null,"Cabos",null,null,"Obra: \"PROJETO DE ARQUITETURA E ESPECIALIDADES DO TOPO NORTE DO ESTÁDIO MUNICIPAL DE LEIRIA PARA CENTRO DE NEGÓCIOS E CENTRO ASSOCIATIVO MUNICIPAL\""]
[null,null,null,null,null,"LISTA DE PONTOS"]
[null,null,null,null,null,"Tipo Sinal",null,null,null,null,null,null,null,null,"Informação / Comando",null,null,null,null,null,null,null,null,null,"Rev.: 02","Data: 2025/09/24"]
[null,"Quadro","Inst.","Descrição",null,"ED","Edi","SD","Eap","Eaa","SA","Bus","Protocolo",null,"Alarme","Sinal","Reg","Ind.","Acum.",null,null,null,null,null,"Observações"]
[]
[null,null,null,"QGTC_6",null,null,null,null,null,null,null,null,null,null,null,null,null,null,null,"QTD","REF"]
[]
[null,null,null,"Instalações mecânicas PISO 6"]
[]
[null,"QGTC 6","AVAC 6","QE.AVAC 6",null,null,null,null,null,null,null,null,null,null,null,null,null,null,null,null,null,4,"YSLY-JZ 25G1"]
[null,"\"","\"","Posição interruptor geral",null,1,null,null,null,null,null,null,null,null,"E","A",null,null,"N"]
[null,"\"","\"","Disparo agrupado int. diferenciais",null,1,null,null,null,null,null,null,null,null,"E","A",null,null,"N"]
[null,"\"","\"","Actuação CDI",null,1,null,null,null,null,null,null,null,null,"E","A",null,null,"N"]
[null,"\"","\"","Analisador de rede",null,null,null,null,null,null,null,20,"Modbus-Rtu (RS485)",null,null,null,null,null,null,null,null,1,"Datacel 2x2x0,5"]
[null,"\"","\"","Contagem de energia elétrica chiller 1",null,null,null,null,null,null,null,10,"Modbus-Rtu (RS485)",null,null,null,null,null,null,null,null,1,"Datacel 2x2x0,5"]
[null,"\"","\"","Contagem de energia elétrica chiller 2",null,null,null,null,null,null,null,10,"Modbus-Rtu (RS485)",null,null,null,null,null,null,null,null,1,"Datacel 2x2x0,5"]
[null,"\"","\"","Contagem de energia elétrica chiller 3",null,null,null,null,null,null,null,10,"Modbus-Rtu (RS485)",null,null,null,null,null,null,null,null,1,"Datacel 2x2x0,5"]
[]
[null,"QGTC 6","AVAC 6","QE.Desenfumagem",null,null,null,null,null,null,null,null,null,null,null,null,null,null,null,null,null,1,"YSLY-JZ 7G1"]
[null,"\"","\"","Posição interruptor geral",null,1,null,null,null,null,null,null,null,null,"E","A",null,null,"N"]
[null,"\"","\"","Disparo agrupado int. diferenciais",null,1,null,null,null,null,null,null,null,null,"E","A",null,null,"N"]
[null,"\"","\"","Actuação CDI",null,1,null,null,null,null,null,null,null,null,"E","A",null,null,"N"]
[null,"\"","\"","Analisador de rede",null,null,null,null,null,null,null,20,"Modbus-Rtu (RS485)",null,null,null,null,null,null,null,null,1,"Datacel 2x2x0,5"]
[]
[null,"QGTC 6","AVAC 6","Chiller 1 (4T)",null,null,null,null,null,null,null,null,null,null,null,null,null,null,null,null,null,null,null,1]
[null,"\"","\"","Arranque / Paragem automático",null,null,null,1,null,null,null,null,null,null,null,null,null,null,null,null,null,1,"YSLY-OZ 2x1"]
[null,"\"","\"","Comutador Man-0-Automático",null,1,null,null,null,null,null,null,null,null,"E","A",null,null,"N"]
[null,"\"","\"","Disparo protecções",null,1,null,null,null,null,null,null,null,null,"E","A",null,null,"N"]
[null,"\"","\"","Presença de caudal (fluxostato - água fria) ",null,1,null,null,null,null,null,null,null,null,"F","A",null,null,"N",1,"SF1KF001",1,"YSLY-OZ 2x1"]
[null,"\"","\"","Presença de caudal (fluxostato - água quente) ",null,1,null,null,null,null,null,null,null,null,"F","A",null,null,"N",1,"SF1KF001",1,"YSLY-OZ 2x1"]
[null,"\"","\"","Temperatura circuito ida (água fria)",null,null,null,null,1,null,null,null,null,null,null,null,"ºC","ºC",null,1,"EGT346F102",1,"LIHCH 2x1"]
[null,"\"","\"","Temperatura circuito retorno (água fria)",null,null,null,null,1,null,null,null,null,null,null,null,"ºC","ºC",null,1,"EGT346F102",1,"LIHCH 2x1"]
[null,"\"","\"","Temperatura circuito ida (água quente)",null,null,null,null,1,null,null,null,null,null,null,null,"ºC","ºC",null,1,"EGT346F102",1,"LIHCH 2x1"]
[null,"\"","\"","Temperatura circuito retorno (água quente)",null,null,null,null,1,null,null,null,null,null,null,null,"ºC","ºC",null,1,"EGT346F102",1,"LIHCH 2x1"]
[null,"\"","\"","Contagem energia térmica - água quente",null,null,null,null,null,null,null,10,"M-Bus",null,null,null,null,"Kw",null,1,"CET-AQ-DN200F",1,"Datacel 2x2x0,5",null,"Contador saída impulso ou integração"]
[null,"\"","\"","Contagem energia térmica - água fria",null,null,null,null,null,null,null,10,"M-Bus",null,null,null,null,"Kw",null,1,"CET-AF-DN150F",1,"Datacel 2x2x0,5",null,"Contador saída impulso ou integração"]
[null,"\"","\"","Sinais via protocolo de comunicação",null,null,null,null,null,null,null,{"$f":"20*3","v":60},"Modbus-Rtu (RS485)",null,null,null,null,null,null,null,null,1,"Datacel 2x2x0,5"]
[]
[null,"QGTC 6","AVAC 6","Chiller 2 (4T)",null,null,null,null,null,null,null,null,null,null,null,null,null,null,null,null,null,null,null,1]
[null,"\"","\"","Arranque / Paragem automático",null,null,null,1,null,null,null,null,null,null,null,null,null,null,null,null,null,1,"YSLY-OZ 2x1"]
[null,"\"","\"","Comutador Man-0-Automático",null,1,null,null,null,null,null,null,null,null,"E","A",null,null,"N"]
[null,"\"","\"","Disparo protecções",null,1,null,null,null,null,null,null,null,null,"E","A",null,null,"N"]
[null,"\"","\"","Presença de caudal (fluxostato - água fria) ",null,1,null,null,null,null,null,null,null,null,"F","A",null,null,"N",1,"SF1KF001",1,"YSLY-OZ 2x1"]
[null,"\"","\"","Presença de caudal (fluxostato - água quente) ",null,1,null,null,null,null,null,null,null,null,"F","A",null,null,"N",1,"SF1KF001",1,"YSLY-OZ 2x1"]
[null,"\"","\"","Temperatura circuito ida (água fria)",null,null,null,null,1,null,null,null,null,null,null,null,"ºC","ºC",null,1,"EGT346F102",1,"LIHCH 2x1"]
[null,"\"","\"","Temperatura circuito retorno (água fria)",null,null,null,null,1,null,null,null,null,null,null,null,"ºC","ºC",null,1,"EGT346F102",1,"LIHCH 2x1"]
[null,"\"","\"","Temperatura circuito ida (água quente)",null,null,null,null,1,null,null,null,null,null,null,null,"ºC","ºC",null,1,"EGT346F102",1,"LIHCH 2x1"]
[null,"\"","\"","Temperatura circuito retorno (água quente)",null,null,null,null,1,null,null,null,null,null,null,null,"ºC","ºC",null,1,"EGT346F102",1,"LIHCH 2x1"]
[null,"\"","\"","Contagem energia térmica - água quente",null,null,null,null,null,null,null,10,"M-Bus",null,null,null,null,"Kw",null,1,"CET-AQ-DN200F",1,"Datacel 2x2x0,5",null,"Contador saída impulso ou integração"]
[null,"\"","\"","Contagem energia térmica - água fria",null,null,null,null,null,null,null,10,"M-Bus",null,null,null,null,"Kw",null,1,"CET-AF-DN150F",1,"Datacel 2x2x0,5",null,"Contador saída impulso ou integração"]
[null,"\"","\"","Sinais via protocolo de comunicação",null,null,null,null,null,null,null,{"$f":"20*3","v":60},"Modbus-Rtu (RS485)",null,null,null,null,null,null,null,null,1,"Datacel 2x2x0,5"]
[]
[null,"QGTC 6","AVAC 6","Chiller 3 (4T)",null,null,null,null,null,null,null,null,null,null,null,null,null,null,null,null,null,null,null,1]
[null,"\"","\"","Arranque / Paragem automático",null,null,null,1,null,null,null,null,null,null,null,null,null,null,null,null,null,1,"YSLY-OZ 2x1"]
[null,"\"","\"","Comutador Man-0-Automático",null,1,null,null,null,null,null,null,null,null,"E","A",null,null,"N"]
[null,"\"","\"","Disparo protecções",null,1,null,null,null,null,null,null,null,null,"E","A",null,null,"N"]
[null,"\"","\"","Presença de caudal (fluxostato - água fria) ",null,1,null,null,null,null,null,null,null,null,"F","A",null,null,"N",1,"SF1KF001",1,"YSLY-OZ 2x1"]
[null,"\"","\"","Presença de caudal (fluxostato - água quente) ",null,1,null,null,null,null,null,null,null,null,"F","A",null,null,"N",1,"SF1KF001",1,"YSLY-OZ 2x1"]
[null,"\"","\"","Temperatura circuito ida (água fria)",null,null,null,null,1,null,null,null,null,null,null,null,"ºC","ºC",null,1,"EGT346F102",1,"LIHCH 2x1"]
[null,"\"","\"","Temperatura circuito retorno (água fria)",null,null,null,null,1,null,null,null,null,null,null,null,"ºC","ºC",null,1,"EGT346F102",1,"LIHCH 2x1"]
[null,"\"","\"","Temperatura circuito ida (água quente)",null,null,null,null,1,null,null,null,null,null,null,null,"ºC","ºC",null,1,"EGT346F102",1,"LIHCH 2x1"]
[null,"\"","\"","Temperatura circuito retorno (água quente)",null,null,null,null,1,null,null,null,null,null,null,null,"ºC","ºC",null,1,"EGT346F102",1,"LIHCH 2x1"]
[null,"\"","\"","Contagem energia térmica - água quente",null,null,null,null,null,null,null,10,"M-Bus",null,null,null,null,"Kw",null,1,"CET-AQ-DN100F",1,"Datacel 2x2x0,5",null,"Contador saída impulso ou integração"]
[null,"\"","\"","Contagem energia térmica - água fria",null,null,null,null,null,null,null,10,"M-Bus",null,null,null,null,"Kw",null,1,"CET-AF-DN100F",1,"Datacel 2x2x0,5",null,"Contador saída impulso ou integração"]
[null,"\"","\"","Sinais via protocolo de comunicação",null,null,null,null,null,null,null,{"$f":"20*3","v":60},"Modbus-Rtu (RS485)",null,null,null,null,null,null,null,null,1,"Datacel 2x2x0,5"]
[]
[null,"QGTC 6","AVAC 6","BC-CH1.1 (água quente)"]
[null,"\"","\"","Arranque / Paragem automático",null,null,null,1,null,null,null,null,null,null,null,null,null,null,null,null,null,1,"YSLY-OZ 2x1"]
[null,"\"","\"","Comutador Man-0-Automático",null,1,null,null,null,null,null,null,null,null,"E","A",null,null,"N"]
[null,"\"","\"","Disparo térmico",null,1,null,null,null,null,null,null,null,null,"E","A",null,null,"N"]
[null,"\"","\"","Variador frequência - Comando 0..10Vdc",null,null,null,null,null,null,1,null,null,null,null,"L/D",null,null,"H",null,"Variador excluído",1,"LIHCH 5G1"]
[null,"\"","\"","Variador frequência - Alarme/avaria",null,1,null,null,null,null,null,null,null,null,"E","A",null,null,"N"]
[null,"\"","\"","Variador frequência - Feedback 0..10Vdc",null,null,null,null,null,1]
[null,"\"","\"","Pressão diferencial de água",null,null,null,null,null,1,null,null,null,null,null,null,"Kpa","Kpa",null,1,"DSDU106F021",1,"LIHCH 3G1",null,"Definir gama medida"]
[null,"\"","\"","Filtro de água colmatado",null,1,null,null,null,null,null,null,null,null,"F","A",null,null,"N",1,"DSD137F002",1,"YSLY-OZ 2x1"]
[null,"\"","\"","Sinais via protocolo de comunicação",null,null,null,null,null,null,null,10,"Modbus-Rtu (RS485)",null,null,null,null,null,null,null,null,1,"Datacel 2x2x0,5"]
[]
[null,"QGTC 6","AVAC 6","BC-CH1.2 (água fria)"]
[null,"\"","\"","Arranque / Paragem automático",null,null,null,1,null,null,null,null,null,null,null,null,null,null,null,null,null,1,"YSLY-OZ 2x1"]
[null,"\"","\"","Comutador Man-0-Automático",null,1,null,null,null,null,null,null,null,null,"E","A",null,null,"N"]
[null,"\"","\"","Disparo térmico",null,1,null,null,null,null,null,null,null,null,"E","A",null,null,"N"]
[null,"\"","\"","Variador frequência - Comando 0..10Vdc",null,null,null,null,null,null,1,null,null,null,null,"L/D",null,null,"H",null,"Variador excluído",1,"LIHCH 5G1"]
[null,"\"","\"","Variador frequência - Alarme/avaria",null,1,null,null,null,null,null,null,null,null,"E","A",null,null,"N"]
[null,"\"","\"","Variador frequência - Feedback 0..10Vdc",null,null,null,null,null,1]
[null,"\"","\"","Pressão diferencial de água",null,null,null,null,null,1,null,null,null,null,null,null,"Kpa","Kpa",null,1,"DSDU106F021",1,"LIHCH 3G1",null,"Definir gama medida"]
[null,"\"","\"","Filtro de água colmatado",null,1,null,null,null,null,null,null,null,null,"F","A",null,null,"N",1,"DSD137F002",1,"YSLY-OZ 2x1"]
[null,"\"","\"","Sinais via protocolo de comunicação",null,null,null,null,null,null,null,10,"Modbus-Rtu (RS485)",null,null,null,null,null,null,null,null,1,"Datacel 2x2x0,5"]
[]
[null,"QGTC 6","AVAC 6","BC-CH2.1 (água quente)"]
[null,"\"","\"","Arranque / Paragem automático",null,null,null,1,null,null,null,null,null,null,null,null,null,null,null,null,null,1,"YSLY-OZ 2x1"]
[null,"\"","\"","Comutador Man-0-Automático",null,1,null,null,null,null,null,null,null,null,"E","A",null,null,"N"]
[null,"\"","\"","Disparo térmico",null,1,null,null,null,null,null,null,null,null,"E","A",null,null,"N"]
[null,"\"","\"","Variador frequência - Comando 0..10Vdc",null,null,null,null,null,null,1,null,null,null,null,"L/D",null,null,"H",null,"Variador excluído",1,"LIHCH 5G1"]
[null,"\"","\"","Variador frequência - Alarme/avaria",null,1,null,null,null,null,null,null,null,null,"E","A",null,null,"N"]
[null,"\"","\"","Variador frequência - Feedback 0..10Vdc",null,null,null,null,null,1]
[null,"\"","\"","Pressão diferencial de água",null,null,null,null,null,1,null,null,null,null,null,null,"Kpa","Kpa",null,1,"DSDU106F021",1,"LIHCH 3G1",null,"Definir gama medida"]
[null,"\"","\"","Filtro de água colmatado",null,1,null,null,null,null,null,null,null,null,"F","A",null,null,"N",1,"DSD137F002",1,"YSLY-OZ 2x1"]
[null,"\"","\"","Sinais via protocolo de comunicação",null,null,null,null,null,null,null,10,"Modbus-Rtu (RS485)",null,null,null,null,null,null,null,null,1,"Datacel 2x2x0,5"]
[]
[null,"QGTC 6","AVAC 6","BC-CH2.2 (água fria)"]
[null,"\"","\"","Arranque / Paragem automático",null,null,null,1,null,null,null,null,null,null,null,null,null,null,null,null,null,1,"YSLY-OZ 2x1"]
[null,"\"","\"","Comutador Man-0-Automático",null,1,null,null,null,null,null,null,null,null,"E","A",null,null,"N"]
[null,"\"","\"","Disparo térmico",null,1,null,null,null,null,null,null,null,null,"E","A",null,null,"N"]
[null,"\"","\"","Variador frequência - Comando 0..10Vdc",null,null,null,null,null,null,1,null,null,null,null,"L/D",null,null,"H",null,"Variador excluído",1,"LIHCH 5G1"]
[null,"\"","\"","Variador frequência - Alarme/avaria",null,1,null,null,null,null,null,null,null,null,"E","A",null,null,"N"]
[null,"\"","\"","Variador frequência - Feedback 0..10Vdc",null,null,null,null,null,1]
[null,"\"","\"","Pressão diferencial de água",null,null,null,null,null,1,null,null,null,null,null,null,"Kpa","Kpa",null,1,"DSDU16F021",1,"LIHCH 3G1",null,"Definir gama medida"]
[null,"\"","\"","Filtro de água colmatado",null,1,null,null,null,null,null,null,null,null,"F","A",null,null,"N",1,"DSD137F002",1,"YSLY-OZ 2x1"]
[null,"\"","\"","Sinais via protocolo de comunicação",null,null,null,null,null,null,null,10,"Modbus-Rtu (RS485)",null,null,null,null,null,null,null,null,1,"Datacel 2x2x0,5"]
[]
[null,"QGTC 6","AVAC 6","BC-CH3.1 (água quente)"]
[null,"\"","\"","Arranque / Paragem automático",null,null,null,1,null,null,null,null,null,null,null,null,null,null,null,null,null,1,"YSLY-OZ 2x1"]
[null,"\"","\"","Comutador Man-0-Automático",null,1,null,null,null,null,null,null,null,null,"E","A",null,null,"N"]
[null,"\"","\"","Disparo térmico",null,1,null,null,null,null,null,null,null,null,"E","A",null,null,"N"]
[null,"\"","\"","Variador frequência - Comando 0..10Vdc",null,null,null,null,null,null,1,null,null,null,null,"L/D",null,null,"H",null,"Variador excluído",1,"LIHCH 5G1"]
[null,"\"","\"","Variador frequência - Alarme/avaria",null,1,null,null,null,null,null,null,null,null,"E","A",null,null,"N"]
[null,"\"","\"","Variador frequência - Feedback 0..10Vdc",null,null,null,null,null,1]
[null,"\"","\"","Pressão diferencial de água",null,null,null,null,null,1,null,null,null,null,null,null,"Kpa","Kpa",null,1,"DSDU16F021",1,"LIHCH 3G1",null,"Definir gama medida"]
[null,"\"","\"","Filtro de água colmatado",null,1,null,null,null,null,null,null,null,null,"F","A",null,null,"N",1,"DSD137F002",1,"YSLY-OZ 2x1"]
[null,"\"","\"","Sinais via protocolo de comunicação",null,null,null,null,null,null,null,10,"Modbus-Rtu (RS485)",null,null,null,null,null,null,null,null,1,"Datacel 2x2x0,5"]
[]
[null,"QGTC 6","AVAC 6","BC-CH3.2 (água fria)"]
[null,"\"","\"","Arranque / Paragem automático",null,null,null,1,null,null,null,null,null,null,null,null,null,null,null,null,null,1,"YSLY-OZ 2x1"]
[null,"\"","\"","Comutador Man-0-Automático",null,1,null,null,null,null,null,null,null,null,"E","A",null,null,"N"]
[null,"\"","\"","Disparo térmico",null,1,null,null,null,null,null,null,null,null,"E","A",null,null,"N"]
[null,"\"","\"","Variador frequência - Comando 0..10Vdc",null,null,null,null,null,null,1,null,null,null,null,"L/D",null,null,"H",null,"Variador excluído",1,"LIHCH 5G1"]
[null,"\"","\"","Variador frequência - Alarme/avaria",null,1,null,null,null,null,null,null,null,null,"E","A",null,null,"N"]
[null,"\"","\"","Variador frequência - Feedback 0..10Vdc",null,null,null,null,null,1]
[null,"\"","\"","Pressão diferencial de água",null,null,null,null,null,1,null,null,null,null,null,null,"Kpa","Kpa",null,1,"DSDU16F021",1,"LIHCH 3G1",null,"Definir gama medida"]
[null,"\"","\"","Filtro de água colmatado",null,1,null,null,null,null,null,null,null,null,"F","A",null,null,"N",1,"DSD137F002",1,"YSLY-OZ 2x1"]
[null,"\"","\"","Sinais via protocolo de comunicação",null,null,null,null,null,null,null,10,"Modbus-Rtu (RS485)",null,null,null,null,null,null,null,null,1,"Datacel 2x2x0,5"]
[]
[null,"QGTC 6","AVAC 6","Coletor Ida/Retorno (C1 - água fria)"]
[null,"\"","\"","Temperatura colector ida",null,null,null,null,1,null,null,null,null,null,null,null,"ºC","ºC",null,1,"EGT347F102",1,"LIHCH 2x1"]
[null,"\"","\"","Temperatura colector retorno",null,null,null,null,1,null,null,null,null,null,null,null,"ºC","ºC",null,1,"EGT347F102",1,"LIHCH 2x1"]
[]
[null,"QGTC 6","AVAC 6","Coletor Ida/Retorno (C1 - água quente)"]
[null,"\"","\"","Temperatura colector ida",null,null,null,null,1,null,null,null,null,null,null,null,"ºC","ºC",null,1,"EGT347F102",1,"LIHCH 2x1"]
[null,"\"","\"","Temperatura colector retorno",null,null,null,null,1,null,null,null,null,null,null,null,"ºC","ºC",null,1,"EGT347F102",1,"LIHCH 2x1"]
[]
[null,"QGTC 6","AVAC 6","Coletor Ida/Retorno (C2 - água quente)"]
[null,"\"","\"","Temperatura colector ida",null,null,null,null,1,null,null,null,null,null,null,null,"ºC","ºC",null,1,"EGT347F102",1,"LIHCH 2x1"]
[null,"\"","\"","Temperatura colector retorno",null,null,null,null,1,null,null,null,null,null,null,null,"ºC","ºC",null,1,"EGT347F102",1,"LIHCH 2x1"]
[]
[null,"QGTC 6","AVAC 6","Coletor Ida/Retorno (C2 - água fria)"]
[null,"\"","\"","Temperatura colector ida",null,null,null,null,1,null,null,null,null,null,null,null,"ºC","ºC",null,1,"EGT347F102",1,"LIHCH 2x1"]
[null,"\"","\"","Temperatura colector retorno",null,null,null,null,1,null,null,null,null,null,null,null,"ºC","ºC",null,1,"EGT347F102",1,"LIHCH 2x1"]
[]
[null,"QGTC 6","AVAC 6","D. Inércia Aquecimento"]
[null,"\"","\"","Temperatura depósito",null,null,null,null,1,null,null,null,null,null,null,null,"ºC","ºC",null,1,"EGT348F102",1,"LIHCH 2x1"]
[null,"\"","\""]
[null,"QGTC 6","AVAC 6","D. Inércia Arrefecimento"]
[null,"\"","\"","Temperatura depósito",null,null,null,null,1,null,null,null,null,null,null,null,"ºC","ºC",null,1,"EGT348F102",1,"LIHCH 2x1"]
[]
[null,"QGTC 6","AVAC 6","BCF Cent.1"]
[null,"\"","\"","Arranque / Paragem automático",null,null,null,1,null,null,null,null,null,null,null,null,null,null,null,null,null,1,"YSLY-OZ 2x1"]
[null,"\"","\"","Comutador Man-0-Automático",null,1,null,null,null,null,null,null,null,null,"E","A",null,null,"N"]
[null,"\"","\"","Disparo térmico",null,1,null,null,null,null,null,null,null,null,"E","A",null,null,"N"]
[null,"\"","\"","Variador frequência - Comando 0..10Vdc",null,null,null,null,null,null,1,null,null,null,null,"L/D",null,null,"H",null,"Variador excluído",1,"LIHCH 5G1"]
[null,"\"","\"","Variador frequência - Alarme/avaria",null,1,null,null,null,null,null,null,null,null,"E","A",null,null,"N"]
[null,"\"","\"","Variador frequência - Feedback 0..10Vdc",null,null,null,null,null,1]
[null,"\"","\"","Pressão diferencial de água",null,null,null,null,null,1,null,null,null,null,null,null,"Kpa","Kpa",null,1,"DSDU16F021",1,"LIHCH 3G1",null,"Definir gama medida"]
[null,"\"","\"","Filtro de água colmatado",null,1,null,null,null,null,null,null,null,null,"F","A",null,null,"N",1,"DSD137F002",1,"YSLY-OZ 2x1"]
[null,"\"","\"","Temperatura circuito ida (água fria)",null,null,null,null,1,null,null,null,null,null,null,null,"ºC","ºC",null,1,"EGT346F102",1,"LIHCH 2x1"]
[null,"\"","\"","Temperatura circuito retorno (água fria)",null,null,null,null,1,null,null,null,null,null,null,null,"ºC","ºC",null,1,"EGT346F102",1,"LIHCH 2x1"]
[null,"\"","\"","Sinais via protocolo de comunicação",null,null,null,null,null,null,null,10,"Modbus-Rtu (RS485)",null,null,null,null,null,null,null,null,1,"Belden 9842"]
[]
[null,"QGTC 6","AVAC 6","BCF Cent.2"]
[null,"\"","\"","Arranque / Paragem automático",null,null,null,1,null,null,null,null,null,null,null,null,null,null,null,null,null,1,"YSLY-OZ 2x1"]
[null,"\"","\"","Comutador Man-0-Automático",null,1,null,null,null,null,null,null,null,null,"E","A",null,null,"N"]
[null,"\"","\"","Disparo térmico",null,1,null,null,null,null,null,null,null,null,"E","A",null,null,"N"]
[null,"\"","\"","Variador frequência - Comando 0..10Vdc",null,null,null,null,null,null,1,null,null,null,null,"L/D",null,null,"H",null,"Variador excluído",1,"LIHCH 5G1"]
[null,"\"","\"","Variador frequência - Alarme/avaria",null,1,null,null,null,null,null,null,null,null,"E","A",null,null,"N"]
[null,"\"","\"","Variador frequência - Feedback 0..10Vdc",null,null,null,null,null,1]
[null,"\"","\"","Pressão diferencial de água",null,null,null,null,null,1,null,null,null,null,null,null,"Kpa","Kpa",null,1,"DSDU16F021",1,"LIHCH 3G1",null,"Definir gama medida"]
[null,"\"","\"","Filtro de água colmatado",null,1,null,null,null,null,null,null,null,null,"F","A",null,null,"N",1,"DSD137F002",1,"YSLY-OZ 2x1"]
[null,"\"","\"","Temperatura circuito (água fria)",null,null,null,null,1,null,null,null,null,null,null,null,"ºC","ºC",null,1,"EGT346F102",1,"LIHCH 2x1"]
[null,"\"","\"","Temperatura circuito retorno (água fria)",null,null,null,null,1,null,null,null,null,null,null,null,"ºC","ºC",null,1,"EGT346F102",1,"LIHCH 2x1"]
[null,"\"","\"","Sinais via protocolo de comunicação",null,null,null,null,null,null,null,10,"Modbus-Rtu (RS485)",null,null,null,null,null,null,null,null,1,"Belden 9842"]
[]
[null,"QGTC 6","AVAC 6","BCF Dir."]
[null,"\"","\"","Arranque / Paragem automático",null,null,null,1,null,null,null,null,null,null,null,null,null,null,null,null,null,1,"YSLY-OZ 2x1"]
[null,"\"","\"","Comutador Man-0-Automático",null,1,null,null,null,null,null,null,null,null,"E","A",null,null,"N"]
[null,"\"","\"","Disparo térmico",null,1,null,null,null,null,null,null,null,null,"E","A",null,null,"N"]
[null,"\"","\"","Variador frequência - Comando 0..10Vdc",null,null,null,null,null,null,1,null,null,null,null,"L/D",null,null,"H",null,"Variador excluído",1,"LIHCH 5G1"]
[null,"\"","\"","Variador frequência - Alarme/avaria",null,1,null,null,null,null,null,null,null,null,"E","A",null,null,"N"]
[null,"\"","\"","Variador frequência - Feedback 0..10Vdc",null,null,null,null,null,1]
[null,"\"","\"","Pressão diferencial de água",null,null,null,null,null,1,null,null,null,null,null,null,"Kpa","Kpa",null,1,"DSDU16F021",1,"LIHCH 3G1",null,"Definir gama medida"]
[null,"\"","\"","Filtro de água colmatado",null,1,null,null,null,null,null,null,null,null,"F","A",null,null,"N",1,"DSD137F002",1,"YSLY-OZ 2x1"]
[null,"\"","\"","Temperatura circuito (água fria)",null,null,null,null,1,null,null,null,null,null,null,null,"ºC","ºC",null,1,"EGT346F102",1,"LIHCH 2x1"]
[null,"\"","\"","Temperatura circuito retorno (água fria)",null,null,null,null,1,null,null,null,null,null,null,null,"ºC","ºC",null,1,"EGT346F102",1,"LIHCH 2x1"]
[null,"\"","\"","Sinais via protocolo de comunicação",null,null,null,null,null,null,null,10,"Modbus-Rtu (RS485)",null,null,null,null,null,null,null,null,1,"Belden 9842"]
[]
[null,"QGTC 6","AVAC 6","BCF Esq.1"]
[null,"\"","\"","Arranque / Paragem automático",null,null,null,1,null,null,null,null,null,null,null,null,null,null,null,null,null,1,"YSLY-OZ 2x1"]
[null,"\"","\"","Comutador Man-0-Automático",null,1,null,null,null,null,null,null,null,null,"E","A",null,null,"N"]
[null,"\"","\"","Disparo térmico",null,1,null,null,null,null,null,null,null,null,"E","A",null,null,"N"]
[null,"\"","\"","Variador frequência - Comando 0..10Vdc",null,null,null,null,null,null,1,null,null,null,null,"L/D",null,null,"H",null,"Variador excluído",1,"LIHCH 5G1"]
[null,"\"","\"","Variador frequência - Alarme/avaria",null,1,null,null,null,null,null,null,null,null,"E","A",null,null,"N"]
[null,"\"","\"","Variador frequência - Feedback 0..10Vdc",null,null,null,null,null,1]
[null,"\"","\"","Pressão diferencial de água",null,null,null,null,null,1,null,null,null,null,null,null,"Kpa","Kpa",null,1,"DSDU16F021",1,"LIHCH 3G1",null,"Definir gama medida"]
[null,"\"","\"","Filtro de água colmatado",null,1,null,null,null,null,null,null,null,null,"F","A",null,null,"N",1,"DSD137F002",1,"YSLY-OZ 2x1"]
[null,"\"","\"","Temperatura circuito (água fria)",null,null,null,null,1,null,null,null,null,null,null,null,"ºC","ºC",null,1,"EGT346F102",1,"LIHCH 2x1"]
[null,"\"","\"","Temperatura circuito retorno (água fria)",null,null,null,null,1,null,null,null,null,null,null,null,"ºC","ºC",null,1,"EGT346F102",1,"LIHCH 2x1"]
[null,"\"","\"","Sinais via protocolo de comunicação",null,null,null,null,null,null,null,10,"Modbus-Rtu (RS485)",null,null,null,null,null,null,null,null,1,"Belden 9842"]
[]
[null,"QGTC 6","AVAC 6","BCF Esq.2"]
[null,"\"","\"","Arranque / Paragem automático",null,null,null,1,null,null,null,null,null,null,null,null,null,null,null,null,null,1,"YSLY-OZ 2x1"]
[null,"\"","\"","Comutador Man-0-Automático",null,1,null,null,null,null,null,null,null,null,"E","A",null,null,"N"]
[null,"\"","\"","Disparo térmico",null,1,null,null,null,null,null,null,null,null,"E","A",null,null,"N"]
[null,"\"","\"","Variador frequência - Comando 0..10Vdc",null,null,null,null,null,null,1,null,null,null,null,"L/D",null,null,"H",null,"Variador excluído",1,"LIHCH 5G1"]
[null,"\"","\"","Variador frequência - Alarme/avaria",null,1,null,null,null,null,null,null,null,null,"E","A",null,null,"N"]
[null,"\"","\"","Variador frequência - Feedback 0..10Vdc",null,null,null,null,null,1]
[null,"\"","\"","Pressão diferencial de água",null,null,null,null,null,1,null,null,null,null,null,null,"Kpa","Kpa",null,1,"DSDU16F021",1,"LIHCH 3G1",null,"Definir gama medida"]
[null,"\"","\"","Filtro de água colmatado",null,1,null,null,null,null,null,null,null,null,"F","A",null,null,"N",1,"DSD137F002",1,"YSLY-OZ 2x1"]
[null,"\"","\"","Temperatura circuito (água fria)",null,null,null,null,1,null,null,null,null,null,null,null,"ºC","ºC",null,1,"EGT346F102",1,"LIHCH 2x1"]
[null,"\"","\"","Temperatura circuito retorno (água fria)",null,null,null,null,1,null,null,null,null,null,null,null,"ºC","ºC",null,1,"EGT346F102",1,"LIHCH 2x1"]
[null,"\"","\"","Sinais via protocolo de comunicação",null,null,null,null,null,null,null,10,"Modbus-Rtu (RS485)",null,null,null,null,null,null,null,null,1,"Belden 9842"]
[]
[null,"QGTC 6","AVAC 6","BCQ Cent.1"]
[null,"\"","\"","Arranque / Paragem automático",null,null,null,1,null,null,null,null,null,null,null,null,null,null,null,null,null,1,"YSLY-OZ 2x1"]
[null,"\"","\"","Comutador Man-0-Automático",null,1,null,null,null,null,null,null,null,null,"E","A",null,null,"N"]
[null,"\"","\"","Disparo térmico",null,1,null,null,null,null,null,null,null,null,"E","A",null,null,"N"]
[null,"\"","\"","Variador frequência - Comando 0..10Vdc",null,null,null,null,null,null,1,null,null,null,null,"L/D",null,null,"H",null,"Variador excluído",1,"LIHCH 5G1"]
[null,"\"","\"","Variador frequência - Alarme/avaria",null,1,null,null,null,null,null,null,null,null,"E","A",null,null,"N"]
[null,"\"","\"","Variador frequência - Feedback 0..10Vdc",null,null,null,null,null,1]
[null,"\"","\"","Pressão diferencial de água",null,null,null,null,null,1,null,null,null,null,null,null,"Kpa","Kpa",null,1,"DSDU16F021",1,"LIHCH 3G1",null,"Definir gama medida"]
[null,"\"","\"","Filtro de água colmatado",null,1,null,null,null,null,null,null,null,null,"F","A",null,null,"N",1,"DSD137F002",1,"YSLY-OZ 2x1"]
[null,"\"","\"","Temperatura circuito ida (água quente)",null,null,null,null,1,null,null,null,null,null,null,null,"ºC","ºC",null,1,"EGT346F102",1,"LIHCH 2x1"]
[null,"\"","\"","Temperatura circuito retorno (água quente)",null,null,null,null,1,null,null,null,null,null,null,null,"ºC","ºC",null,1,"EGT346F102",1,"LIHCH 2x1"]
[null,"\"","\"","Sinais via protocolo de comunicação",null,null,null,null,null,null,null,10,"Modbus-Rtu (RS485)",null,null,null,null,null,null,null,null,1,"Belden 9842"]
[]
[null,"QGTC 6","AVAC 6","BCQ Cent.2"]
[null,"\"","\"","Arranque / Paragem automático",null,null,null,1,null,null,null,null,null,null,null,null,null,null,null,null,null,1,"YSLY-OZ 2x1"]
[null,"\"","\"","Comutador Man-0-Automático",null,1,null,null,null,null,null,null,null,null,"E","A",null,null,"N"]
[null,"\"","\"","Disparo térmico",null,1,null,null,null,null,null,null,null,null,"E","A",null,null,"N"]
[null,"\"","\"","Variador frequência - Comando 0..10Vdc",null,null,null,null,null,null,1,null,null,null,null,"L/D",null,null,"H",null,"Variador excluído",1,"LIHCH 5G1"]
[null,"\"","\"","Variador frequência - Alarme/avaria",null,1,null,null,null,null,null,null,null,null,"E","A",null,null,"N"]
[null,"\"","\"","Variador frequência - Feedback 0..10Vdc",null,null,null,null,null,1]
[null,"\"","\"","Pressão diferencial de água",null,null,null,null,null,1,null,null,null,null,null,null,"Kpa","Kpa",null,1,"DSDU16F021",1,"LIHCH 3G1",null,"Definir gama medida"]
[null,"\"","\"","Filtro de água colmatado",null,1,null,null,null,null,null,null,null,null,"F","A",null,null,"N",1,"DSD137F002",1,"YSLY-OZ 2x1"]
[null,"\"","\"","Temperatura circuito ida (água quente)",null,null,null,null,1,null,null,null,null,null,null,null,"ºC","ºC",null,1,"EGT346F102",1,"LIHCH 2x1"]
[null,"\"","\"","Temperatura circuito retorno (água quente)",null,null,null,null,1,null,null,null,null,null,null,null,"ºC","ºC",null,1,"EGT346F102",1,"LIHCH 2x1"]
[null,"\"","\"","Sinais via protocolo de comunicação",null,null,null,null,null,null,null,10,"Modbus-Rtu (RS485)",null,null,null,null,null,null,null,null,1,"Belden 9842"]
[]
[null,"QGTC 6","AVAC 6","BCQ Dir."]
[null,"\"","\"","Arranque / Paragem automático",null,null,null,1,null,null,null,null,null,null,null,null,null,null,null,null,null,1,"YSLY-OZ 2x1"]
[null,"\"","\"","Comutador Man-0-Automático",null,1,null,null,null,null,null,null,null,null,"E","A",null,null,"N"]
[null,"\"","\"","Disparo térmico",null,1,null,null,null,null,null,null,null,null,"E","A",null,null,"N"]
[null,"\"","\"","Variador frequência - Comando 0..10Vdc",null,null,null,null,null,null,1,null,null,null,null,"L/D",null,null,"H",null,"Variador excluído",1,"LIHCH 5G1"]
[null,"\"","\"","Variador frequência - Alarme/avaria",null,1,null,null,null,null,null,null,null,null,"E","A",null,null,"N"]
[null,"\"","\"","Variador frequência - Feedback 0..10Vdc",null,null,null,null,null,1]
[null,"\"","\"","Pressão diferencial de água",null,null,null,null,null,1,null,null,null,null,null,null,"Kpa","Kpa",null,1,"DSDU16F021",1,"LIHCH 3G1",null,"Definir gama medida"]
[null,"\"","\"","Filtro de água colmatado",null,1,null,null,null,null,null,null,null,null,"F","A",null,null,"N",1,"DSD137F002",1,"YSLY-OZ 2x1"]
[null,"\"","\"","Temperatura circuito ida (água quente)",null,null,null,null,1,null,null,null,null,null,null,null,"ºC","ºC",null,1,"EGT346F102",1,"LIHCH 2x1"]
[null,"\"","\"","Temperatura circuito retorno (água quente)",null,null,null,null,1,null,null,null,null,null,null,null,"ºC","ºC",null,1,"EGT346F102",1,"LIHCH 2x1"]
[null,"\"","\"","Sinais via protocolo de comunicação",null,null,null,null,null,null,null,10,"Modbus-Rtu (RS485)",null,null,null,null,null,null,null,null,1,"Belden 9842"]
[]
[null,"QGTC 6","AVAC 6","BCQ Esq.1"]
[null,"\"","\"","Arranque / Paragem automático",null,null,null,1,null,null,null,null,null,null,null,null,null,null,null,null,null,1,"YSLY-OZ 2x1"]
[null,"\"","\"","Comutador Man-0-Automático",null,1,null,null,null,null,null,null,null,null,"E","A",null,null,"N"]
[null,"\"","\"","Disparo térmico",null,1,null,null,null,null,null,null,null,null,"E","A",null,null,"N"]
[null,"\"","\"","Variador frequência - Comando 0..10Vdc",null,null,null,null,null,null,1,null,null,null,null,"L/D",null,null,"H",null,"Variador excluído",1,"LIHCH 5G1"]
[null,"\"","\"","Variador frequência - Alarme/avaria",null,1,null,null,null,null,null,null,null,null,"E","A",null,null,"N"]
[null,"\"","\"","Variador frequência - Feedback 0..10Vdc",null,null,null,null,null,1]
[null,"\"","\"","Pressão diferencial de água",null,null,null,null,null,1,null,null,null,null,null,null,"Kpa","Kpa",null,1,"DSDU16F021",1,"LIHCH 3G1",null,"Definir gama medida"]
[null,"\"","\"","Filtro de água colmatado",null,1,null,null,null,null,null,null,null,null,"F","A",null,null,"N",1,"DSD137F002",1,"YSLY-OZ 2x1"]
[null,"\"","\"","Temperatura circuito ida (água quente)",null,null,null,null,1,null,null,null,null,null,null,null,"ºC","ºC",null,1,"EGT346F102",1,"LIHCH 2x1"]
[null,"\"","\"","Temperatura circuito retorno (água quente)",null,null,null,null,1,null,null,null,null,null,null,null,"ºC","ºC",null,1,"EGT346F102",1,"LIHCH 2x1"]
[null,"\"","\"","Sinais via protocolo de comunicação",null,null,null,null,null,null,null,10,"Modbus-Rtu (RS485)",null,null,null,null,null,null,null,null,1,"Belden 9842"]
[]
[null,"QGTC 6","AVAC 6","BCQ Esq.2"]
[null,"\"","\"","Arranque / Paragem automático",null,null,null,1,null,null,null,null,null,null,null,null,null,null,null,null,null,1,"YSLY-OZ 2x1"]
[null,"\"","\"","Comutador Man-0-Automático",null,1,null,null,null,null,null,null,null,null,"E","A",null,null,"N"]
[null,"\"","\"","Disparo térmico",null,1,null,null,null,null,null,null,null,null,"E","A",null,null,"N"]
[null,"\"","\"","Variador frequência - Comando 0..10Vdc",null,null,null,null,null,null,1,null,null,null,null,"L/D",null,null,"H",null,"Variador excluído",1,"LIHCH 5G1"]
[null,"\"","\"","Variador frequência - Alarme/avaria",null,1,null,null,null,null,null,null,null,null,"E","A",null,null,"N"]
[null,"\"","\"","Variador frequência - Feedback 0..10Vdc",null,null,null,null,null,1]
[null,"\"","\"","Pressão diferencial de água",null,null,null,null,null,1,null,null,null,null,null,null,"Kpa","Kpa",null,1,"DSDU16F021",1,"LIHCH 3G1",null,"Definir gama medida"]
[null,"\"","\"","Filtro de água colmatado",null,1,null,null,null,null,null,null,null,null,"F","A",null,null,"N",1,"DSD137F002",1,"YSLY-OZ 2x1"]
[null,"\"","\"","Temperatura circuito ida (água quente)",null,null,null,null,1,null,null,null,null,null,null,null,"ºC","ºC",null,1,"EGT346F102",1,"LIHCH 2x1"]
[null,"\"","\"","Temperatura circuito retorno (água quente)",null,null,null,null,1,null,null,null,null,null,null,null,"ºC","ºC",null,1,"EGT346F102",1,"LIHCH 2x1"]
[null,"\"","\"","Sinais via protocolo de comunicação",null,null,null,null,null,null,null,10,"Modbus-Rtu (RS485)",null,null,null,null,null,null,null,null,1,"Belden 9842"]
[]
[null,"QGTC 6","AVAC 6","REC 3"]
[null,"\"","\"","Arranque / Paragem automático",null,null,null,1,null,null,null,null,null,null,null,null,null,null,null,null,null,1,"YSLY-OZ 2x1"]
[null,"\"","\"","Comutador Man-0-Automático",null,1,null,null,null,null,null,null,null,null,"E","A",null,null,"N"]
[null,"\"","\"","Avaria",null,1,null,null,null,null,null,null,null,null,"E","A",null,null,"N"]
[null,"\"","\"","Sinais via protocolo de comunicação",null,null,null,null,null,null,null,45,"BACnet/IP",null,null,null,null,null,null,null,null,1,"UTP Cat6"]
[null,null,null,"REC 3"]
[null,null,null," - % Ventilador Insuflação;"]
[null,null,null," - % Ventilador Retorno;"]
[null,null,null," - % Registo Modulante;"]
[null,null,null," - % Eficiência da recuperação;"]
[null,null,null," - % Abertura da válvula frio;"]
[null,null,null," - % Abertura da válvula quente;"]
[null,null,null," - Estado dos Registos On-Off;"]
[null,null,null," - Ciclo de Funcionamento;"]
[null,null,null," - Ordem aos Ventiladores 1 (individual);"]
[null,null,null," - Ordem aos Ventiladores 2 (individual);"]
[null,null,null," - Temperatura Exterior;"]
[null,null,null," - Temperatura de Retorno;"]
[null,null,null," - Temperatura pós-recuperação;"]
[null,null,null," - Temperatura de Insuflação;"]
[null,null,null," - Temperatura de água fria ida;"]
[null,null,null," - Temperatura de água fria retorno;"]
[null,null,null," - Temperatura de água quente ida;"]
[null,null,null," - Temperatura de água quente retorno;"]
[null,null,null," - Pressão diferencial de Insuflação;"]
[null,null,null," - Caudal de Insuflação;"]
[null,null,null," - Pressão diferencial de Retorno;"]
[null,null,null," - Caudal de Retorno;"]
[null,null,null," - Falha de caudal;"]
[null,null,null," - Estado do filtro de Ar Novo;"]
[null,null,null," - Estado do filtro de Insuflação;"]
[null,null,null," - Estado do filtro de Retorno;"]
[null,null,null," - Estado do Fim de curso dos registos On-Off;"]
[null,null,null," - Estado de Avaria do Ventilador Insuflação;"]
[null,null,null," - Estado de Avaria do Ventilador Retorno;"]
[]
[]
[null,"QGTC 6","AVAC 6","REC 15"]
[null,"\"","\"","Arranque / Paragem automático",null,null,null,1,null,null,null,null,null,null,null,null,null,null,null,null,null,1,"YSLY-OZ 2x1"]
[null,"\"","\"","Comutador Man-0-Automático",null,1,null,null,null,null,null,null,null,null,"E","A",null,null,"N"]
[null,"\"","\"","Avaria",null,1,null,null,null,null,null,null,null,null,"E","A",null,null,"N"]
[null,"\"","\"","Sinais via protocolo de comunicação",null,null,null,null,null,null,null,45,"BACnet/IP",null,null,null,null,null,null,null,null,1,"UTP Cat6"]
[null,null,null,"REC 15"]
[null,null,null," - % Ventilador Insuflação;"]
[null,null,null," - % Ventilador Retorno;"]
[null,null,null," - % Registo Modulante;"]
[null,null,null," - % Eficiência da recuperação;"]
[null,null,null," - % Abertura da válvula frio;"]
[null,null,null," - % Abertura da válvula quente;"]
[null,null,null," - Estado dos Registos On-Off;"]
[null,null,null," - Ciclo de Funcionamento;"]
[null,null,null," - Ordem aos Ventiladores 1 (individual);"]
[null,null,null," - Ordem aos Ventiladores 2 (individual);"]
[null,null,null," - Temperatura Exterior;"]
[null,null,null," - Temperatura de Retorno;"]
[null,null,null," - Temperatura pós-recuperação;"]
[null,null,null," - Temperatura de Insuflação;"]
[null,null,null," - Temperatura de água fria ida;"]
[null,null,null," - Temperatura de água fria retorno;"]
[null,null,null," - Temperatura de água quente ida;"]
[null,null,null," - Temperatura de água quente retorno;"]
[null,null,null," - Pressão diferencial de Insuflação;"]
[null,null,null," - Caudal de Insuflação;"]
[null,null,null," - Pressão diferencial de Retorno;"]
[null,null,null," - Caudal de Retorno;"]
[null,null,null," - Falha de caudal;"]
[null,null,null," - Estado do filtro de Ar Novo;"]
[null,null,null," - Estado do filtro de Insuflação;"]
[null,null,null," - Estado do filtro de Retorno;"]
[null,null,null," - Estado do Fim de curso dos registos On-Off;"]
[null,null,null," - Estado de Avaria do Ventilador Insuflação;"]
[null,null,null," - Estado de Avaria do Ventilador Retorno;"]
[]
[]
[null,"QGTC 6","AVAC 6","REC 16"]
[null,"\"","\"","Arranque / Paragem automático",null,null,null,1,null,null,null,null,null,null,null,null,null,null,null,null,null,1,"YSLY-OZ 2x1"]
[null,"\"","\"","Comutador Man-0-Automático",null,1,null,null,null,null,null,null,null,null,"E","A",null,null,"N"]
[null,"\"","\"","Avaria",null,1,null,null,null,null,null,null,null,null,"E","A",null,null,"N"]
[null,"\"","\"","Sinais via protocolo de comunicação",null,null,null,null,null,null,null,45,"BACnet/IP",null,null,null,null,null,null,null,null,1,"UTP Cat6"]
[null,null,null,"REC 16"]
[null,null,null," - % Ventilador Insuflação;"]
[null,null,null," - % Ventilador Retorno;"]
[null,null,null," - % Registo Modulante;"]
[null,null,null," - % Eficiência da recuperação;"]
[null,null,null," - % Abertura da válvula frio;"]
[null,null,null," - % Abertura da válvula quente;"]
[null,null,null," - Estado dos Registos On-Off;"]
[null,null,null," - Ciclo de Funcionamento;"]
[null,null,null," - Ordem aos Ventiladores 1 (individual);"]
[null,null,null," - Ordem aos Ventiladores 2 (individual);"]
[null,null,null," - Temperatura Exterior;"]
[null,null,null," - Temperatura de Retorno;"]
[null,null,null," - Temperatura pós-recuperação;"]
[null,null,null," - Temperatura de Insuflação;"]
[null,null,null," - Temperatura de água fria ida;"]
[null,null,null," - Temperatura de água fria retorno;"]
[null,null,null," - Temperatura de água quente ida;"]
[null,null,null," - Temperatura de água quente retorno;"]
[null,null,null," - Pressão diferencial de Insuflação;"]
[null,null,null," - Caudal de Insuflação;"]
[null,null,null," - Pressão diferencial de Retorno;"]
[null,null,null," - Caudal de Retorno;"]
[null,null,null," - Falha de caudal;"]
[null,null,null," - Estado do filtro de Ar Novo;"]
[null,null,null," - Estado do filtro de Insuflação;"]
[null,null,null," - Estado do filtro de Retorno;"]
[null,null,null," - Estado do Fim de curso dos registos On-Off;"]
[null,null,null," - Estado de Avaria do Ventilador Insuflação;"]
[null,null,null," - Estado de Avaria do Ventilador Retorno;"]
[]
[null,"QGTC 6","AVAC 6","REC 17"]
[null,"\"","\"","Arranque / Paragem automático",null,null,null,1,null,null,null,null,null,null,null,null,null,null,null,null,null,1,"YSLY-OZ 2x1"]
[null,"\"","\"","Comutador Man-0-Automático",null,1,null,null,null,null,null,null,null,null,"E","A",null,null,"N"]
[null,"\"","\"","Avaria",null,1,null,null,null,null,null,null,null,null,"E","A",null,null,"N"]
[null,"\"","\"","Sinais via protocolo de comunicação",null,null,null,null,null,null,null,45,"BACnet/IP",null,null,null,null,null,null,null,null,1,"UTP Cat6"]
[null,null,null,"REC 17"]
[null,null,null," - % Ventilador Insuflação;"]
[null,null,null," - % Ventilador Retorno;"]
[null,null,null," - % Registo Modulante;"]
[null,null,null," - % Eficiência da recuperação;"]
[null,null,null," - % Abertura da válvula frio;"]
[null,null,null," - % Abertura da válvula quente;"]
[null,null,null," - Estado dos Registos On-Off;"]
[null,null,null," - Ciclo de Funcionamento;"]
[null,null,null," - Ordem aos Ventiladores 1 (individual);"]
[null,null,null," - Ordem aos Ventiladores 2 (individual);"]
[null,null,null," - Temperatura Exterior;"]
[null,null,null," - Temperatura de Retorno;"]
[null,null,null," - Temperatura pós-recuperação;"]
[null,null,null," - Temperatura de Insuflação;"]
[null,null,null," - Temperatura de água fria ida;"]
[null,null,null," - Temperatura de água fria retorno;"]
[null,null,null," - Temperatura de água quente ida;"]
[null,null,null," - Temperatura de água quente retorno;"]
[null,null,null," - Pressão diferencial de Insuflação;"]
[null,null,null," - Caudal de Insuflação;"]
[null,null,null," - Pressão diferencial de Retorno;"]
[null,null,null," - Caudal de Retorno;"]
[null,null,null," - Falha de caudal;"]
[null,null,null," - Estado do filtro de Ar Novo;"]
[null,null,null," - Estado do filtro de Insuflação;"]
[null,null,null," - Estado do filtro de Retorno;"]
[null,null,null," - Estado do Fim de curso dos registos On-Off;"]
[null,null,null," - Estado de Avaria do Ventilador Insuflação;"]
[null,null,null," - Estado de Avaria do Ventilador Retorno;"]
[]
[null,"QGTC 6","AVAC 6","REC 11"]
[null,"\"","\"","Arranque / Paragem automático",null,null,null,1,null,null,null,null,null,null,null,null,null,null,null,null,null,1,"YSLY-OZ 2x1"]
[null,"\"","\"","Comutador Man-0-Automático",null,1,null,null,null,null,null,null,null,null,"E","A",null,null,"N"]
[null,"\"","\"","Avaria",null,1,null,null,null,null,null,null,null,null,"E","A",null,null,"N"]
[null,"\"","\"","Sinais via protocolo de comunicação",null,null,null,null,null,null,null,45,"BACnet/IP",null,null,null,null,null,null,null,null,1,"UTP Cat6"]
[null,null,null,"REC 11"]
[null,null,null," - % Ventilador Insuflação;"]
[null,null,null," - % Ventilador Retorno;"]
[null,null,null," - % Registo Modulante;"]
[null,null,null," - % Eficiência da recuperação;"]
[null,null,null," - % Abertura da válvula frio;"]
[null,null,null," - % Abertura da válvula quente;"]
[null,null,null," - Estado dos Registos On-Off;"]
[null,null,null," - Ciclo de Funcionamento;"]
[null,null,null," - Ordem aos Ventiladores 1 (individual);"]
[null,null,null," - Ordem aos Ventiladores 2 (individual);"]
[null,null,null," - Temperatura Exterior;"]
[null,null,null," - Temperatura de Retorno;"]
[null,null,null," - Temperatura pós-recuperação;"]
[null,null,null," - Temperatura de Insuflação;"]
[null,null,null," - Temperatura de água fria ida;"]
[null,null,null," - Temperatura de água fria retorno;"]
[null,null,null," - Temperatura de água quente ida;"]
[null,null,null," - Temperatura de água quente retorno;"]
[null,null,null," - Pressão diferencial de Insuflação;"]
[null,null,null," - Caudal de Insuflação;"]
[null,null,null," - Pressão diferencial de Retorno;"]
[null,null,null," - Caudal de Retorno;"]
[null,null,null," - Falha de caudal;"]
[null,null,null," - Estado do filtro de Ar Novo;"]
[null,null,null," - Estado do filtro de Insuflação;"]
[null,null,null," - Estado do filtro de Retorno;"]
[null,null,null," - Estado do Fim de curso dos registos On-Off;"]
[null,null,null," - Estado de Avaria do Ventilador Insuflação;"]
[null,null,null," - Estado de Avaria do Ventilador Retorno;"]
[]
[]
[null,"QGTC 6","AVAC 6","UTAN 1"]
[null,"\"","\"","Arranque / Paragem automático",null,null,null,1,null,null,null,null,null,null,null,null,null,null,null,null,null,1,"YSLY-OZ 2x1"]
[null,"\"","\"","Comutador Man-0-Automático",null,1,null,null,null,null,null,null,null,null,"E","A",null,null,"N"]
[null,"\"","\"","Avaria",null,1,null,null,null,null,null,null,null,null,"E","A",null,null,"N"]
[null,"\"","\"","Sinais via protocolo de comunicação",null,null,null,null,null,null,null,45,"BACnet/IP",null,null,null,null,null,null,null,null,1,"UTP Cat6"]
[null,null,null,"UTAN 1"]
[null,null,null," - % Ventilador Insuflação;"]
[null,null,null," - % Ventilador Retorno;"]
[null,null,null," - % Registo Modulante;"]
[null,null,null," - % Eficiência da recuperação;"]
[null,null,null," - % Abertura da válvula frio;"]
[null,null,null," - % Abertura da válvula quente;"]
[null,null,null," - Estado dos Registos On-Off;"]
[null,null,null," - Ciclo de Funcionamento;"]
[null,null,null," - Ordem aos Ventiladores 1 (individual);"]
[null,null,null," - Ordem aos Ventiladores 2 (individual);"]
[null,null,null," - Temperatura Exterior;"]
[null,null,null," - Temperatura de Retorno;"]
[null,null,null," - Temperatura pós-recuperação;"]
[null,null,null," - Temperatura de Insuflação;"]
[null,null,null," - Temperatura de água fria ida;"]
[null,null,null," - Temperatura de água fria retorno;"]
[null,null,null," - Temperatura de água quente ida;"]
[null,null,null," - Temperatura de água quente retorno;"]
[null,null,null," - Pressão diferencial de Insuflação;"]
[null,null,null," - Caudal de Insuflação;"]
[null,null,null," - Pressão diferencial de Retorno;"]
[null,null,null," - Caudal de Retorno;"]
[null,null,null," - Falha de caudal;"]
[null,null,null," - Estado do filtro de Ar Novo;"]
[null,null,null," - Estado do filtro de Insuflação;"]
[null,null,null," - Estado do filtro de Retorno;"]
[null,null,null," - Estado do Fim de curso dos registos On-Off;"]
[null,null,null," - Estado de Avaria do Ventilador Insuflação;"]
[null,null,null," - Estado de Avaria do Ventilador Retorno;"]
[]
[null,"QGTC 6","AVAC 6","UTAN 2"]
[null,"\"","\"","Arranque / Paragem automático",null,null,null,1,null,null,null,null,null,null,null,null,null,null,null,null,null,1,"YSLY-OZ 2x1"]
[null,"\"","\"","Comutador Man-0-Automático",null,1,null,null,null,null,null,null,null,null,"E","A",null,null,"N"]
[null,"\"","\"","Avaria",null,1,null,null,null,null,null,null,null,null,"E","A",null,null,"N"]
[null,"\"","\"","Sinais via protocolo de comunicação",null,null,null,null,null,null,null,45,"BACnet/IP",null,null,null,null,null,null,null,null,1,"UTP Cat6"]
[null,null,null,"UTAN 1"]
[null,null,null," - % Ventilador Insuflação;"]
[null,null,null," - % Ventilador Retorno;"]
[null,null,null," - % Registo Modulante;"]
[null,null,null," - % Eficiência da recuperação;"]
[null,null,null," - % Abertura da válvula frio;"]
[null,null,null," - % Abertura da válvula quente;"]
[null,null,null," - Estado dos Registos On-Off;"]
[null,null,null," - Ciclo de Funcionamento;"]
[null,null,null," - Ordem aos Ventiladores 1 (individual);"]
[null,null,null," - Ordem aos Ventiladores 2 (individual);"]
[null,null,null," - Temperatura Exterior;"]
[null,null,null," - Temperatura de Retorno;"]
[null,null,null," - Temperatura pós-recuperação;"]
[null,null,null," - Temperatura de Insuflação;"]
[null,null,null," - Temperatura de água fria ida;"]
[null,null,null," - Temperatura de água fria retorno;"]
[null,null,null," - Temperatura de água quente ida;"]
[null,null,null," - Temperatura de água quente retorno;"]
[null,null,null," - Pressão diferencial de Insuflação;"]
[null,null,null," - Caudal de Insuflação;"]
[null,null,null," - Pressão diferencial de Retorno;"]
[null,null,null," - Caudal de Retorno;"]
[null,null,null," - Falha de caudal;"]
[null,null,null," - Estado do filtro de Ar Novo;"]
[null,null,null," - Estado do filtro de Insuflação;"]
[null,null,null," - Estado do filtro de Retorno;"]
[null,null,null," - Estado do Fim de curso dos registos On-Off;"]
[null,null,null," - Estado de Avaria do Ventilador Insuflação;"]
[null,null,null," - Estado de Avaria do Ventilador Retorno;"]
[null,null,null,null,null,null,null,null,null,null,null,null,null,null,null,null,null,null,null,null,null,null,null,null,null,null,"FALTA UTA 3"]
[null,"QGTC 6","AVAC 6","REC 18"]
[null,"\"","\"","Arranque / Paragem automático",null,null,null,1,null,null,null,null,null,null,null,null,null,null,null,null,null,1,"YSLY-OZ 2x1"]
[null,"\"","\"","Comutador Man-0-Automático",null,1,null,null,null,null,null,null,null,null,"E","A",null,null,"N"]
[null,"\"","\"","Avaria",null,1,null,null,null,null,null,null,null,null,"E","A",null,null,"N"]
[null,"\"","\"","Sinais via protocolo de comunicação",null,null,null,null,null,null,null,45,"BACnet/IP",null,null,null,null,null,null,null,null,1,"UTPCat6"]
[null,null,null,"REC 18"]
[null,null,null," - % Ventilador Insuflação;"]
[null,null,null," - % Ventilador Retorno;"]
[null,null,null," - % Registo Modulante;"]
[null,null,null," - % Eficiência da recuperação;"]
[null,null,null," - % Abertura da válvula frio;"]
[null,null,null," - % Abertura da válvula quente;"]
[null,null,null," - Estado dos Registos On-Off;"]
[null,null,null," - Ciclo de Funcionamento;"]
[null,null,null," - Ordem aos Ventiladores 1 (individual);"]
[null,null,null," - Ordem aos Ventiladores 2 (individual);"]
[null,null,null," - Temperatura Exterior;"]
[null,null,null," - Temperatura de Retorno;"]
[null,null,null," - Temperatura pós-recuperação;"]
[null,null,null," - Temperatura de Insuflação;"]
[null,null,null," - Temperatura de água fria ida;"]
[null,null,null," - Temperatura de água fria retorno;"]
[null,null,null," - Temperatura de água quente ida;"]
[null,null,null," - Temperatura de água quente retorno;"]
[null,null,null," - Pressão diferencial de Insuflação;"]
[null,null,null," - Caudal de Insuflação;"]
[null,null,null," - Pressão diferencial de Retorno;"]
[null,null,null," - Caudal de Retorno;"]
[null,null,null," - Falha de caudal;"]
[null,null,null," - Estado do filtro de Ar Novo;"]
[null,null,null," - Estado do filtro de Insuflação;"]
[null,null,null," - Estado do filtro de Retorno;"]
[null,null,null," - Estado do Fim de curso dos registos On-Off;"]
[null,null,null," - Estado de Avaria do Ventilador Insuflação;"]
[null,null,null," - Estado de Avaria do Ventilador Retorno;"]
[]
[null,"QGTC 6","AVAC 6","VEX 19"]
[null,"\"","\"","Arranque / Paragem automático",null,null,null,1,null,null,null,null,null,null,null,null,null,null,null,null,null,1,"YSLY-OZ 2x1"]
[null,"\"","\"","Comutador Man-0-Automático",null,1,null,null,null,null,null,null,null,null,"E","A",null,null,"N"]
[null,"\"","\"","Estado funcionamento (pressostato)",null,1,null,null,null,null,null,null,null,null,"F","A",null,null,"N",1,"DWG930.80",1,"YSLY-OZ 2x1"]
[null,"\"","\"","Avaria",null,1,null,null,null,null,null,null,null,null,"E","E",null,null,"N"]
[]
[null,"QGTC 6","AVAC 6","VEX 6"]
[null,"\"","\"","Arranque / Paragem automático",null,null,null,1,null,null,null,null,null,null,null,null,null,null,null,null,null,1,"YSLY-OZ 2x1"]
[null,"\"","\"","Comutador Man-0-Automático",null,1,null,null,null,null,null,null,null,null,"E","A",null,null,"N"]
[null,"\"","\"","Estado funcionamento (pressostato)",null,1,null,null,null,null,null,null,null,null,"F","A",null,null,"N",1,"DWG930.80",1,"YSLY-OZ 2x1"]
[null,"\"","\"","Avaria",null,1,null,null,null,null,null,null,null,null,"E","E",null,null,"N"]
[]
[null,"QGTC 6","AVAC 6","VEX 13"]
[null,"\"","\"","Arranque / Paragem automático",null,null,null,1,null,null,null,null,null,null,null,null,null,null,null,null,null,1,"YSLY-OZ 2x1"]
[null,"\"","\"","Comutador Man-0-Automático",null,1,null,null,null,null,null,null,null,null,"E","A",null,null,"N"]
[null,"\"","\"","Estado funcionamento (pressostato)",null,1,null,null,null,null,null,null,null,null,"F","A",null,null,"N",1,"DWG930.80",1,"YSLY-OZ 2x1"]
[null,"\"","\"","Avaria",null,1,null,null,null,null,null,null,null,null,"E","E",null,null,"N"]
[]
[null,"QGTC 6","AVAC 6","VEX 14"]
[null,"\"","\"","Arranque / Paragem automático",null,null,null,1,null,null,null,null,null,null,null,null,null,null,null,null,null,1,"YSLY-OZ 2x1"]
[null,"\"","\"","Comutador Man-0-Automático",null,1,null,null,null,null,null,null,null,null,"E","A",null,null,"N"]
[null,"\"","\"","Estado funcionamento (pressostato)",null,1,null,null,null,null,null,null,null,null,"F","A",null,null,"N",1,"DWG930.80",1,"YSLY-OZ 2x1"]
[null,"\"","\"","Avaria",null,1,null,null,null,null,null,null,null,null,"E","E",null,null,"N"]
[]
[null,"QGTC 6","AVAC 6","VEX 15"]
[null,"\"","\"","Arranque / Paragem automático",null,null,null,1,null,null,null,null,null,null,null,null,null,null,null,null,null,1,"YSLY-OZ 2x1"]
[null,"\"","\"","Comutador Man-0-Automático",null,1,null,null,null,null,null,null,null,null,"E","A",null,null,"N"]
[null,"\"","\"","Estado funcionamento (pressostato)",null,1,null,null,null,null,null,null,null,null,"F","A",null,null,"N",1,"DWG930.80",1,"YSLY-OZ 2x1"]
[null,"\"","\"","Avaria",null,1,null,null,null,null,null,null,null,null,"E","E",null,null,"N"]
[]
[null,"QGTC 6","AVAC 6","VEX 5"]
[null,"\"","\"","Arranque / Paragem automático",null,null,null,1,null,null,null,null,null,null,null,null,null,null,null,null,null,1,"YSLY-OZ 2x1"]
[null,"\"","\"","Comutador Man-0-Automático",null,1,null,null,null,null,null,null,null,null,"E","A",null,null,"N"]
[null,"\"","\"","Estado funcionamento (pressostato)",null,1,null,null,null,null,null,null,null,null,"F","A",null,null,"N",1,"DWG930.80",1,"YSLY-OZ 2x1"]
[null,"\"","\"","Avaria",null,1,null,null,null,null,null,null,null,null,"E","E",null,null,"N"]
[]
[null,"QGTC 6","AVAC 6","VEX 7"]
[null,"\"","\"","Arranque / Paragem automático",null,null,null,1,null,null,null,null,null,null,null,null,null,null,null,null,null,1,"YSLY-OZ 2x1"]
[null,"\"","\"","Comutador Man-0-Automático",null,1,null,null,null,null,null,null,null,null,"E","A",null,null,"N"]
[null,"\"","\"","Estado funcionamento (pressostato)",null,1,null,null,null,null,null,null,null,null,"F","A",null,null,"N",1,"DWG930.80",1,"YSLY-OZ 2x1"]
[null,"\"","\"","Avaria",null,1,null,null,null,null,null,null,null,null,"E","E",null,null,"N"]
[]
[null,"QGTC 6","AVAC 6","BC AQ AQS"]
[null,"\"","\"","Arranque / Paragem automático",null,null,null,1,null,null,null,null,null,null,null,null,null,null,null,null,null,1,"YSLY-OZ 2x1"]
[null,"\"","\"","Comutador Man-0-Automático",null,1,null,null,null,null,null,null,null,null,"E","A",null,null,"N"]
[null,"\"","\"","Avaria",null,1,null,null,null,null,null,null,null,null,"E","A",null,null,"N"]
[null,"\"","\"","Presença de caudal (pressostato diferencial)",null,1,null,null,null,null,null,null,null,null,"F","A",null,null,"N",1,"DSD143F002",1,"YSLY-OZ 2x1"]
[null,"\"","\"","Filtro de água colmatado",null,1,null,null,null,null,null,null,null,null,"F","A",null,null,"N",1,"DSD137F002",1,"YSLY-OZ 2x1"]
[null,"\"","\"","Temperatura circuito retorno",null,null,null,null,1,null,null,null,null,null,null,null,"ºC","ºC",null,1,"EGT346F102",1,"LIHCH 2x1"]
[null,null,null,"Sinais via protocolo de comunicação",null,null,null,null,null,null,null,10,"BACnet/IP",null,null,null,null,null,null,null,null,1,"Datacel 2x2x0,5"]
[]
[null,"QGTC 6","AVAC 6","Central Registos Corta-Fogo"]
[null,null,null,"Sinais via protocolo de comunicação",null,null,null,null,null,null,null,50,"BACnet/IP",null,null,null,null,null,null,null,null,1,"UTP cat6"]
[]
[null,null,null,"Contagem de energia térmica"]
[null,"QGTC 6","AVAC 6","Contagem de energia térmica - AQ (Ala esquerda)",null,null,null,null,null,null,null,10,"M-Bus",null,null,null,null,null,null,1,"CET-AQ-DN100F",1,"Datacel 2x2x0,5",1]
[null,"\"","\"","Contagem de energia térmica - AF (Ala esquerda)",null,null,null,null,null,null,null,10,"M-Bus",null,null,null,null,null,null,1,"CET-AF-DN100F",1,"Datacel 2x2x0,5",1]
[]
[]
[null,null,null,"Instalações elétricas"]
[]
[null,"QGTC 6","QE","(C0) QP-SC6 Piso 6"]
[null,"\"","\"","Posição interruptor geral",null,1,null,null,null,null,null,null,null,null,"E","A",null,null,"N",null,null,1,"YSLY-JZ 25G1"]
[null,"\"","\"","Posição Disjuntores Quadros Parciais",null,15,null,null,null,null,null,null,null,null,"E","A",null,null,"N"]
[null,"\"","\"","Disparo disjuntor alimentação - (C0) QP-SC6",null,1,null,null,null,null,null,null,null,null,"F","A",null,null,"N"]
[null,"\"","\"","Analisador de rede (C0) QP-SC6",null,null,null,null,null,null,null,20,"Modbus-Rtu",null,null,null,null,null,null,null,null,1,"Datacel 2x2x0,5"]
[null,"\"","\"","Integração iluminação DALI",null,null,null,null,null,null,null,{"$f":"3*128","v":384},"DALI",null,null,null,null,null,null,null,null,6,"DALI 1x2x2"]
[null,"\"","\"","Teclas KNX ",null,null,null,null,null,null,null,{"$f":"64","v":64},"KNX",null,null,null,null,null,null,null,null,3,"EIB 2x2x0,5"]
[]
[null,"QGTC 6","QE","(C0) QP-SC7 Piso 7"]
[null,"\"","\"","Posição interruptor geral",null,1,null,null,null,null,null,null,null,null,"E","A",null,null,"N",null,null,1,"YSLY-JZ 25G1"]
[null,"\"","\"","Posição Disjuntores Quadros Parciais",null,15,null,null,null,null,null,null,null,null,"E","A",null,null,"N"]
[null,"\"","\"","Disparo disjuntor alimentação - (C0) QP-SC7",null,1,null,null,null,null,null,null,null,null,"F","A",null,null,"N"]
[null,"\"","\"","Analisador de rede (C0) QP-SC7",null,null,null,null,null,null,null,20,"Modbus-Rtu",null,null,null,null,null,null,null,null,1,"Datacel 2x2x0,5"]
[null,"\"","\"","Integração iluminação DALI",null,null,null,null,null,null,null,{"$f":"3*128","v":384},"DALI",null,null,null,null,null,null,null,null,6,"DALI 1x2x2"]
[null,"\"","\"","Teclas KNX ",null,null,null,null,null,null,null,{"$f":"64*3","v":192},"KNX",null,null,null,null,null,null,null,null,3,"EIB 2x2x0,5"]
[]
[null,"QGTC 6","AVAC 6","FOTOVOLTAICO"]
[null,"\"","\"","Inversor fotovoltaico x2",null,null,null,null,null,null,null,100,"Modbus-Rtu",null,null,null,null,null,null,null,null,1,"Datacel 2x2x0,5"]
[]
[null,"QGTC 6","AVAC 6","SEPARADOR GORDURAS"]
[null,"\"","\"","Alarme"]
[null,"\"","\"","Nivel no deposito",null,null,null,null,1,null,null,null,null,null,null,null,null,null,null,null,null,1,"LIHCH 2x1"]
[]
[null,"QGTC 6","AVAC 6","GERADOR DE EMERGENCIA"]
[null,"\"","\"","Marcha da bomba",null,null,null,1,null,null,null,null,null,null,"E","A",null,null,"N",null,null,1,"YSLY-OZ 2x1"]
[null,"\"","\"","Confirmação funcionamento ",null,1,null,null,null,null,null,null,null,null,"E","A",null,null,"N",null,null,1,"YSLY-JZ 5G1"]
[null,"\"","\"","Alarme",null,1,null,null,null,null,null,null,null,null,"F","A",null,null,"N"]
[null,"\"","\"","Analisador de rede QE Gerador",null,null,null,null,null,null,null,20,"Modbus-Rtu",null,null,null,null,null,null,null,null,1,"LIHCH 2x1"]
[]
[null,"QGTC 6","AVAC 6","Central de Deteção de Incêndio (CDI)"]
[null,"\"","\"","Sinais via protocolo de comunicação",null,null,null,null,null,null,null,50,"BACnet/IP",null,null,null,null,null,null,null,null,1,"UTP Cat6"]
[]
[]
[null,null,null,"Pontos Controlo",null,{"$f":"SUM(F5:F670)","v":159},0,36,44,32,16,2144]
[null,null,null,"Reserva (+10%)",null,{"$f":"CEILING(F671*0.1,1)","v":16},0,4,5,4,2,215]
[null,null,null,"TOTAL PONTOS CONTROLO",null,{"$f":"F671+F672","v":175},0,40,49,36,18,2359]